Cogmind - Beta 11.1 @@@ ROGUE MODE // 2022.09.11 @ 21:19:06 Player: Pogmind Result: Establishing 0b11! Performance ------------- Evolutions (9) 4500 Regions Visited (42) 8400 Robots Destroyed (758) 3790 Value Destroyed (36772) 36772 Prototype IDs (314) 6280 Alien Tech Used (21) 4200 Bonus (69109) 69109 TOTAL SCORE: 133051 Bonus ------- Triggered High Security 1000 High Alert Combat Kills 18011 Follower Combat Kills 4244 Network Hubs Disabled 800 Aligned with FarCom 300 Met Data Miner 300 Met Warlord at Base 500 MAIN.C Attacked Warlord 500 Warlord Defense Kills 1096 Built Enhanced Grunts 300 Met Warlord at Research 2000 Scanned by Researcher 500 Pursued by Intercept 1000 Recovered Sigix Corpse 2000 Destroyed MAIN.C Guards 500 Met MAIN.C 5000 Destroyed MAIN.C Shell 5000 Destroyed MAIN.C 10000 Met Architect 300 Destroyed A8 300 Destroyed A6 400 Destroyed A5 500 Destroyed A4 700 Destroyed A3 800 Destroyed A2 1000 Destroyed Architect 15000 Win 3000 Friendly Fire -5942 Cogmind --------- Core Integrity 448/1850 Matter 290/300 Energy 362/380 System Corruption 1% Temperature Cool (36) Movement Hovering (36) Location 0b11 Command Parts ------- > --- POWER (2) -------- Zero-point Reactor Zero-point Reactor > --- PROPULSION (7) --- Combat Antigrav System Cooled Linear Gravjet Combat Linear Gravjet Combat Linear Gravjet Combat Linear Gravjet Combat Linear Gravjet Combat Linear Gravjet > --- UTILITY (12) ----- Experimental Power Amplifier 2N-1CE's Frost Array Large Storage Unit Advanced Quantum Shading Machine Experimental Targeting Computer Experimental Core Analyzer Improved Armor Integrity Analyzer Experimental Weapon Cycler Experimental Reaction Control System Experimental Powered Armor AEGIS Remote Shield > --- WEAPON (5) ------- Long-range Gatling Laser Long-range Gatling Laser Long-range Gatling Laser Long-range Gatling Laser Gatling Beam > --- INVENTORY (17) --- Zero-point Reactor Combat Linear Gravjet 2N-1CE's Frost Array Superbattery (1500) Advanced Phase Shifter Heavy Quantum Rifle Heavy Quantum Rifle Heavy Quantum Rifle Heavy Quantum Rifle Modified Sigix Sheargun Sigix Shearcannon A3's Sniper Rifle Sigix Broadsword Sigix Corpse Peak State ------------ > --- POWER ------------ Zero-point Reactor Zero-point Reactor > --- PROPULSION ------- Combat Linear Gravjet Combat Linear Gravjet Combat Linear Gravjet Combat Linear Gravjet Combat Linear Gravjet Combat Linear Gravjet Combat Linear Gravjet > --- UTILITY ---------- Advanced Power Amplifier Huge Storage Unit Advanced Quantum Shading Machine Experimental Targeting Computer Experimental Target Analyzer Experimental Core Analyzer Improved Armor Integrity Analyzer Experimental Weapon Cycler Experimental Reaction Control System Experimental Powered Armor AEGIS Remote Shield Phase Redirector > --- WEAPON ----------- Hypervelocity Multirail Omega Cannon Sigix Broadsword > --- INVENTORY -------- Zero-point Reactor Zero-point Reactor Cooled Antigrav System Cooled Antigrav System 2N-1CE's Frost Array 2N-1CE's Frost Array Large Storage Unit Superbattery Experimental Matter Compressor Experimental Matter Compressor Long-range Terrain Scanner Advanced Terrain Scan Processor Advanced Kinecellerator Advanced Kinecellerator Advanced Phase Shifter Advanced Phase Shifter Improved Utility Shielding Experimental Powered Armor Transdimensional Reconstructor Heavy Quantum Rifle Heavy Quantum Rifle Heavy Quantum Rifle Heavy Quantum Rifle Heavy Quantum Rifle Compact HERF Cannon Sigix Shearcannon [Rating: 280] Favorites ----------- Power Micro Fission Core Engine Heavy Ion Engine Power Core Micro Fission Core Reactor Vortex Chain Reactor Propulsion Combat Linear Gravjet Treads Light Treads Leg Advanced Myomer Leg Wheel Armored Wheel Hover Unit Combat Linear Gravjet Flight Unit Biomechanical Wings Utility Large Storage Unit Device Experimental Sensor Array Storage Large Storage Unit Processor Experimental Targeting Computer Hackware Deep Network Scanner Protection Light Armor Plating Artifact Phase Redirector Weapon Sigix Broadsword Energy Gun Sigix Sheargun Energy Cannon EM Pulse Cannon Ballistic Gun Hypervelocity Multirail Ballistic Cannon Hypervelocity Gauss Cannon Launcher Mini Smartbomb Launcher Special Weapon Plasma Cutter Impact Weapon Power Maul Slashing Weapon Sigix Broadsword Piercing Weapon Heavy Pick Build | -11 -10 -10 -9 -9 -9 -8 -8 -8 -7 -7 -7 -7 -6 -6 -6 -6 -6 -6 -6 -5 -5 -5 -5 -5 -5 -5 -5 -4 -4 -4 -4 -4 -4 -3 -3 -3 -2 -2 -2 -1 -1 -1 ------- Run | Scr Mat Min Mat Min Exi Min Mat Sto Fac Low Low Zio Pro Fac Was Fac Low Low Dat Pro Fac Was Fac Ext Cet Arc Hub Fac Was Fac Upp Upp War Pro Res Tes Res Qua Sec Acc Com Ac0 Slots Evolved 18 | . . . 2 . . . 2 . 2 . . . . 2 . . . . . . 2 . . . . . . 2 . . . . . . 2 . 2 . . 2 . . Power . | . . . . . . . . . . . . . . . . . . . . . . . . . . . . . . . . . . . . . . . . . . . Propulsion 5 | . . . 1 . . . 1 . 1 . . . . 1 . . . . . . . . . . . . . 1 . . . . . . . . . . . . . . Utility 10 | . . . 1 . . . 1 . 1 . . . . 1 . . . . . . 2 . . . . . . 1 . . . . . . 1 . 2 . . . . . Weapon 3 | . . . . . . . . . . . . . . . . . . . . . . . . . . . . . . . . . . . 1 . . . . 2 . . Parts Attached 1348 | 8 7 8 38 5 55 . 72 47 33 9 5 8 13 15 10 21 6 7 8 1 15 3 56 21 9 12 33 70 11 96 10 3 30 . 56 45 7 42 133 22 192 106 Power 64 | 1 2 . 2 . 2 . 3 3 . . . 1 4 . . . . . . . 1 1 6 2 1 1 1 5 . 9 . . 7 . 4 4 . 2 . . 2 . Engine 21 | 1 2 . 2 . 1 . 3 1 . . . 1 4 . . . . . . . 1 . 2 2 . . . . . . . . 1 . . . . . . . . . Core 18 | . . . . . 1 . . 2 . . . . . . . . . . . . . . 4 . . . . 2 . 4 . . 4 . 1 . . . . . . . Reactor 25 | . . . . . . . . . . . . . . . . . . . . . . 1 . . 1 1 1 3 . 5 . . 2 . 3 4 . 2 . . 2 . Propulsion 186 | 2 . . 12 2 8 . 23 9 11 1 2 . . 1 3 1 . . . . . 1 6 . . . . 6 8 6 1 . 4 . 12 5 1 5 1 . 42 13 Treads 49 | 2 . . 7 2 7 . 15 7 2 . . . . . . . . . . . . . . . . . . . 1 . . . 1 . . . . . . . 5 . Leg 17 | . . . . . 1 . 3 1 . . . . . . . . . . . . . . . . . . . . . . . . 1 . . . . . . . 10 1 Wheel 8 | . . . 4 . . . 4 . . . . . . . . . . . . . . . . . . . . . . . . . . . . . . . . . . . Hover 63 | . . . 1 . . . 1 . . . . . . . . . . . . . . . . . . . . . . . . . . . 10 5 1 5 1 . 27 12 Flight 49 | . . . . . . . . 1 9 1 2 . . 1 3 1 . . . . . 1 6 . . . . 6 7 6 1 . 2 . 2 . . . . . . . Utility 687 | 3 3 4 8 1 22 . 22 19 16 7 3 5 5 12 3 17 4 6 7 1 13 1 28 11 4 9 25 45 3 62 7 1 8 . 23 21 4 29 86 14 87 38 Device 404 | 2 . 1 . . 8 . 6 12 8 4 2 4 3 6 2 5 2 6 5 1 5 1 11 8 2 3 19 22 2 44 6 1 6 . 12 15 2 20 58 13 48 29 Storage 22 | 1 2 2 1 . 2 . . . 1 . . . . . . 1 . . . . 1 . . . . . . 1 . . . . . . 2 . . . . . 7 1 Processor 23 | . . . . . . . 1 . 1 . . . 1 1 . . . . . . . . . . . 1 . 1 . 3 . . 1 . 1 . 1 1 2 . 6 2 Hackware 45 | . . . . . 6 . . . 3 . . . . 2 . 8 . . . . 4 . 5 . . 3 . 4 . 2 . . . . 4 1 . . . . 1 2 Protection 180 | . 1 1 7 1 6 . 15 7 3 3 1 1 1 3 1 3 2 . 2 . 3 . 12 3 2 2 6 17 1 13 1 . 1 . 4 5 1 6 23 1 18 3 Artifact 13 | . . . . . . . . . . . . . . . . . . . . . . . . . . . . . . . . . . . . . . 2 3 . 7 1 Weapon 411 | 2 2 4 16 2 23 . 24 16 6 1 . 2 4 2 4 3 2 1 1 . 1 . 16 8 4 2 7 14 . 19 2 2 11 . 17 15 2 6 46 8 61 55 Energy Gun 87 | . . . 1 . 1 . 5 1 2 . . . . . . 1 . . . . . . . 1 . . . . . 2 1 . . . 10 8 1 1 1 . 27 24 Energy Cannon 66 | . . . 1 . 5 . 12 8 . . . . 1 . . . . . . . . . . . . . 1 . . 4 . . 1 . . 1 1 1 11 3 9 7 Ballistic Gun 69 | 2 1 1 7 1 9 . 2 . . . . . . . 1 . . . . . . . . . 1 . . . . . . 1 . . . . . 2 18 4 7 12 Ballistic Cannon 38 | . . . . . . . 1 . . . . . . . . . . . . . . . 2 4 2 1 2 9 . . . . 1 . . . . . 1 . 5 10 Launcher 57 | . 1 3 3 . 2 . 3 1 2 . . . 1 1 1 . . . . . . . 7 1 1 . . 4 . 2 . 1 4 . 1 2 . 1 9 1 5 . Special Weapon 13 | . . . 2 . 3 . . . . . . . . . . . 1 . . . . . . 1 . . . 1 . . . . 2 . . . . . 3 . . . Impact Weapon 27 | . . . 2 1 3 . 1 6 2 . . 1 2 . 2 1 . . . . 1 . 5 . . . . . . . . . . . . . . . . . . . Slashing Weapon 33 | . . . . . . . . . . 1 . . . . . . . . . . . . . . . . . . . 5 1 . 2 . 6 4 . 1 3 . 8 2 Piercing Weapon 21 | . . . . . . . . . . . . 1 . 1 . 1 1 1 1 . . . 2 1 . 1 4 . . 6 . . 1 . . . . . . . . . Special Melee Weapon . | . . . . . . . . . . . . . . . . . . . . . . . . . . . . . . . . . . . . . . . . . . . Unidentified Prototypes 82 | . . 1 1 . 5 . 4 2 2 1 . 2 . . . . . . . . . 1 . . 3 . 2 . 1 6 1 . 10 . . 3 . 9 7 . 10 11 Corrupted Parts 1 | . . . . . . . . . . . . . . . . . . . . . . . . . . . . . . . . . . . . . . . . . 1 . System Corruption 2 | . . . . . . . . . . . . . . . . . . . . . . . . . . . . . . . . . . . . . . . . . 2 . Parts Lost 81 | . . . 12 . 9 . 16 5 1 . . . 1 . . . . . 1 . 3 . 4 1 . . 1 6 . 3 . . . . . 1 . . 1 . 8 8 Power 11 | . . . 1 . . . . 1 . . . . 1 . . . . . 1 . 1 . 1 . . . 1 1 . 3 . . . . . . . . . . . . Propulsion 21 | . . . 4 . 4 . 7 1 . . . . . . . . . . . . 1 . . . . . . . . . . . . . . . . . . . . 4 Utility 35 | . . . 4 . 3 . 7 3 1 . . . . . . . . . . . 1 . 2 1 . . . 4 . . . . . . . 1 . . 1 . 4 3 Weapon 14 | . . . 3 . 2 . 2 . . . . . . . . . . . . . . . 1 . . . . 1 . . . . . . . . . . . . 4 1 Highest Loss Streak 9 | . . . 2 . 4 . 9 2 1 . . . 1 . . . . . 1 . 3 . 2 1 . . 1 2 . 2 . . . . . 1 . . 1 . 4 3 To Critical Strikes 5 | . . . . . 4 . . . . . . . . . . . . . . . . . . . . . . . . . . . . . . . . . . . . 1 Average Slot Usage (%) 91 | . 100 99 100 100 85 100 97 99 97 99 92 98 95 94 96 92 93 92 92 87 92 86 90 85 89 84 93 91 94 97 100 100 99 100 91 84 90 89 86 84 86 92 Engine 4 | . 14 14 11 11 10 . 7 3 . . . 5 6 9 12 12 12 12 11 6 10 5 3 . . . . 3 . . . . . . . . . . . . . . Core 2 | . . . . . . 11 1 5 7 7 7 7 3 . . . . . . . . . 3 5 5 5 5 4 10 4 10 10 9 10 3 . . . . . . . Reactor 1 | . . . . . . . . . . . . . . . . . . . . . . . . . 1 3 . . . 2 . . . . 2 4 4 4 4 3 4 7 Treads 10 | . 28 28 28 33 31 33 30 30 1 . . . . . . . . . . . . . . . . . . . . . . . . . . . . . . . . . Hover 7 | . . . . . . . . . . . . . . . . . . . . . . . . . . . . . . . . . . . 18 30 29 28 29 26 25 25 Flight 12 | . . . . . . . . . 35 37 35 35 35 35 34 30 31 31 31 31 26 27 29 33 33 33 33 32 34 34 35 35 35 35 11 . . . . . . . Device 8 | . 3 . . . 2 . 9 9 6 6 6 7 6 5 5 5 5 5 4 6 5 9 7 8 9 5 4 5 10 6 9 10 9 10 11 13 15 15 14 15 13 23 Storage 6 | . 14 14 11 11 11 11 9 9 7 7 7 7 7 6 6 6 6 6 6 6 5 5 5 5 5 5 5 5 5 5 5 5 5 5 4 4 4 4 4 3 3 3 Processor 6 | . . . . . . . . . 6 7 7 7 7 6 6 6 6 6 6 6 5 5 5 5 5 5 5 5 5 6 5 5 5 5 6 9 12 12 14 15 20 13 Hackware 6 | . . . . . . . . . 13 14 14 14 14 17 15 16 18 18 18 18 23 22 20 10 5 5 16 18 15 19 15 15 15 15 13 13 12 12 9 7 . . Protection 9 | . 10 13 22 22 18 22 17 17 1 . 1 . . . 2 2 . . 1 . 2 . 3 7 11 9 11 9 9 7 10 10 10 10 6 1 . . 1 . 2 3 Energy Cannon 2 | . . . 1 . 2 . 14 16 . . . . . . . . . . . . . . . . . . . . . . . . . . . . . . . 3 . 1 Ballistic Gun 3 | . 28 20 17 21 4 11 . . . . . . . . . . . . . . . . . . . . . . . . . . . . . . . 2 2 2 2 1 Impact Weapon 1 | . . . 1 . 2 11 1 1 6 7 7 6 6 6 5 6 6 4 . . 2 5 3 . . . . . . . . . . . . . . . . . . . Slashing Weapon 1 | . . . . . . . . . . 4 7 5 . . . . . . . . . . . . . . . . . 4 4 5 5 5 3 3 4 4 3 3 2 2 Piercing Weapon 1 | . . . . . . . . . . . . 1 7 6 6 6 6 7 11 12 7 5 4 5 5 5 10 5 5 4 . . . . . . . . . . . . Naked Turns . | . . . . . . . . . . . . . . . . . . . . . . . . . . . . . . . . . . . . . . . . . . . Heaviest Build 197 | 12 51 52 101 103 119 119 137 144 127 23 23 27 25 22 23 33 32 32 32 28 35 32 40 76 79 79 55 75 42 51 43 41 41 41 114 120 101 116 126 127 197 143 Greatest Support 295 | 40 40 40 60 60 60 60 80 80 80 25 27 25 25 32 35 37 37 35 37 37 37 36 36 36 36 36 36 42 42 43 43 43 43 43 119 119 119 119 119 119 295 152 Greatest Overweight (x) 22 | . 1 1 4 1 1 1 6 13 2 . . 1 . . . 1 . . . . . . 1 2 2 22 1 1 1 2 . . 1 . 1 1 . 1 2 3 2 2 Average Overweight (x) . | . . 1 1 1 . 1 1 2 . . . . . . . . . . . . . . . . 1 11 . . . . . . . . . . . . . . . . Largest Inventory Capacity 27 | 8 20 25 25 25 25 25 25 25 25 10 10 10 10 10 10 15 15 15 15 15 15 15 15 15 15 15 15 15 15 15 15 15 15 15 20 20 20 20 22 22 27 17 Average Capacity 18 | 7 14 20 24 25 22 25 25 25 11 10 10 10 10 10 10 14 15 15 15 15 15 15 15 15 15 15 15 15 15 15 15 15 15 15 18 20 20 20 21 22 18 17 Most Carried 27 | 5 20 20 25 25 25 25 25 25 25 10 10 10 10 10 10 15 15 15 15 15 15 15 15 15 15 15 15 15 15 15 15 15 15 15 20 20 20 20 22 22 27 17 Average Carried 17 | 3 10 19 23 24 21 25 23 24 10 9 10 9 10 9 9 11 15 15 14 15 14 13 14 14 14 14 14 13 14 14 15 15 14 15 14 19 19 19 20 21 15 15 Final Capacity 27 | 8 20 20 25 25 25 25 25 25 10 10 10 10 10 10 10 15 15 15 15 15 15 15 15 15 15 15 15 15 15 15 15 15 15 15 20 20 20 20 22 22 27 17 Final Carried 27 | 4 20 20 25 25 25 25 25 25 10 10 10 10 10 10 10 15 15 15 15 15 15 15 15 15 15 15 15 15 15 15 15 15 15 15 20 20 20 20 22 22 27 16 Class Distribution -------------------- 21% | Machinist-Mutant 19% | Scavenger-Mutant 18% | Mutant 14% | Hacker-Sprinter 8% | Wizard-Sprinter 3% | Wizard-Mutant 3% | Scavenger-Gunner 3% | Wizard-Ninja Dominant Class ---------------- Mutant | -10/Materials Mutant | -10/Mines Scavenger-Mutant | -9/Materials Mutant | -9/Mines Mutant | -9/Exiles Scavenger-Mutant | -8/Mines Scavenger-Mutant | -8/Materials Scavenger-Mutant | -8/Storage Hacker-Sprinter | -7/Factory Hacker-Sprinter | -7/Lower Caves Hacker-Sprinter | -7/Lower Caves Hacker-Sprinter | -7/Zion Hacker-Sprinter | -6/Proximity Caves Hacker-Sprinter | -6/Factory Hacker-Sprinter | -6/Waste Hacker-Sprinter | -6/Factory Hacker-Sprinter | -6/Lower Caves Hacker-Sprinter | -6/Lower Caves Hacker-Sprinter | -6/Data Miner Hacker-Sprinter | -5/Proximity Caves Hacker-Sprinter | -5/Factory Hacker-Sprinter | -5/Waste Hacker-Sprinter | -5/Factory Machinist-Mutant | -5/Extension Machinist-Mutant | -5/Cetus Machinist-Mutant | -5/Archives Hacker-Sprinter | -5/Hub_04(d) Wizard-Sprinter | -4/Factory Wizard-Sprinter | -4/Waste Wizard-Sprinter | -4/Factory Wizard-Sprinter | -4/Upper Caves Wizard-Sprinter | -4/Upper Caves Wizard-Sprinter | -4/Warlord Wizard-Sprinter | -3/Proximity Caves Wizard-Mutant | -3/Research Wizard-Mutant | -3/Testing Wizard-Ninja | -2/Research Wizard-Ninja | -2/Quarantine Machinist-Mutant | -2/Section 7 Machinist-Mutant | -1/Access Machinist-Mutant | -1/Command Scavenger-Sprinter | -1/Access_0 Resources | -11 -10 -10 -9 -9 -9 -8 -8 -8 -7 -7 -7 -7 -6 -6 -6 -6 -6 -6 -6 -5 -5 -5 -5 -5 -5 -5 -5 -4 -4 -4 -4 -4 -4 -3 -3 -3 -2 -2 -2 -1 -1 -1 ----------- Run | Scr Mat Min Mat Min Exi Min Mat Sto Fac Low Low Zio Pro Fac Was Fac Low Low Dat Pro Fac Was Fac Ext Cet Arc Hub Fac Was Fac Upp Upp War Pro Res Tes Res Qua Sec Acc Com Ac0 Matter Collected 23117 | 324 220 123 1004 189 879 . 1055 589 351 135 50 51 119 77 251 190 70 80 28 67 54 . 1162 1076 225 192 614 1325 . 1090 346 91 425 . 585 517 30 504 2217 457 4376 1979 Remotely 174 | 174 . . . . . . . . . . . . . . . . . . . . . . . . . . . . . . . . . . . . . . . . . . Salvage Created 47133 | 200 456 . 1739 196 673 . 2666 2009 142 78 . . . 57 . 442 . 20 28 . 115 . 1137 1013 220 303 267 1221 . 1149 290 . 358 . 877 857 209 217 4677 2441 18397 4679 Parts 2094 | 20 36 . 106 13 89 . 138 90 3 1 . . . 5 . 7 . 1 2 . 6 . 64 46 17 25 15 65 . 53 3 . 2 . 39 45 8 3 186 116 610 280 Haulers Intercepted 18 | . 2 . 3 . . . 1 1 . . . . . . . 1 . . . . . . . . . . . 1 . 4 . . . . 2 . . . 3 . . . Recyclers Shooed 10 | . . . 1 . . . 2 2 . . . . . . . . . . . . . . . . . . . 2 . 1 . . . . . 1 . . . 1 . . Parts Field Recycled . | . . . . . . . . . . . . . . . . . . . . . . . . . . . . . . . . . . . . . . . . . . . Retrieved Matter . | . . . . . . . . . . . . . . . . . . . . . . . . . . . . . . . . . . . . . . . . . . . Parts Self-Destructed 16 | . . . . . . . . . . 1 . . 5 . . . 6 1 . . . . . . . . . . . . 3 . . . . . . . . . . . Prevented 3 | . . . . . . . . . . 1 . . 1 . . . . . . . . . . . . . . . . . . 1 . . . . . . . . . . Kills | -11 -10 -10 -9 -9 -9 -8 -8 -8 -7 -7 -7 -7 -6 -6 -6 -6 -6 -6 -6 -5 -5 -5 -5 -5 -5 -5 -5 -4 -4 -4 -4 -4 -4 -3 -3 -3 -2 -2 -2 -1 -1 -1 ------- Run | Scr Mat Min Mat Min Exi Min Mat Sto Fac Low Low Zio Pro Fac Was Fac Low Low Dat Pro Fac Was Fac Ext Cet Arc Hub Fac Was Fac Upp Upp War Pro Res Tes Res Qua Sec Acc Com Ac0 Combat Hostiles Destroyed 537 | . 10 1 35 5 1 . 50 35 1 . . . . 3 . 1 . . . . . . 24 11 6 . 3 20 . 1 1 . 8 . 4 5 . 2 53 25 184 48 Melee 18 | . . . . . . . . 3 . . . . . . . 1 . . . . . . 4 . . . 2 2 . 1 . . . . . 2 . . 2 . 1 . Guns 311 | . 8 . 25 5 . . 4 . . . . . . . . . . . . . . . . . . . . . . . . . . . 4 3 . 2 43 21 164 32 Cannons 112 | . . . 1 . 1 . 29 19 . . . . . . . . . . . . . . 1 10 2 . 1 8 . . . . . . . . . . 6 4 16 14 AOE 85 | . 2 1 9 . . . 13 8 1 . . . . 3 . . . . . . . . 19 1 4 . . 10 . . 1 . 8 . . . . . 2 . 3 . Classes Destroyed 29 | 2 4 1 4 . 2 . 5 1 . 1 . . . . . 1 . . . . . . 3 1 . . . . . . . . . . . . . . 3 . 1 . Worker 64 | . . . 8 2 . . 4 2 . . . . . . . . . . . . . . 3 1 . . . 1 . . . . . . 2 . 2 . 5 6 28 . Builder 27 | . . . 1 . . . . 1 2 . . . . . . 1 . . . . 1 . 3 1 . . . . . 1 . . . . . 2 1 . 5 8 . . Tunneler 15 | 6 . . . 1 . . . . . . . . . . . . . . . . 1 . 1 1 . . . 3 . . . . . . 2 . . . . . . . Hauler 18 | . 2 . 3 . . . 1 1 . . . . . . . 1 . . . . . . . . . . . 1 . 4 . . . . 2 . . . 3 . . . Recycler 29 | 1 . . 1 . . . 3 3 . . . . . . . 1 . . . . . . 2 2 . . . 2 . 3 . . . . 1 3 1 . 2 2 2 . Carrier 8 | . . . . . . . . . . . . . . . . . . . . . . . . . . . . . . . . . . . . . . . . . 8 . Minesweeper 2 | . . . . . . . . . . 1 . . . . . . . 1 . . . . . . . . . . . . . . . . . . . . . . . . Mechanic 11 | . . . . . . . 2 1 . . . . . . . . . . . . . . 1 1 . . . . . . . . . . . 1 . . . . 5 . Operator 21 | . . . 2 . . . 1 1 1 . . . . . . . . . . . . . 1 1 . 9 . . . . . . . . . 2 . . . . 3 . Drone 3 | . . . . . . . . . . . . . . . . 1 . . . . . . 1 . . . . . . 1 . . . . . . . . . . . . Turret 1 | . . . . . 1 . . . . . . . . . . . . . . . . . . . . . . . . . . . . . . . . . . . . . Watcher 76 | . 3 . 4 . . . 5 2 3 . . . . 1 . 6 . . . . 3 . 8 . . . 5 5 . 8 . . . . 5 2 . 2 4 4 6 . Swarmer 67 | . 3 . 11 1 . . 11 . 1 . . . . 3 . . . . . . . . 10 . 4 . . 8 . . . . . . . . . . 4 8 3 . Saboteur 16 | . . . . . . . . . . . . . . . . . . . . . . . 1 . . . . . . . . . . . . . . . 1 . 14 . Grunt 177 | . 7 . 14 4 . . 21 21 . . . . . . . . . . . . . . 7 7 . . 1 . . . . . 8 . 1 . . 1 10 7 68 . Brawler 23 | . . . . . . . 5 2 . . . . . . . . . . . . . . 2 . . . . . . . . . . . . . . . 3 . 11 . Duelist 21 | . . . . . . . 1 1 . . . . . . . . . . . . . . . . . . . . . . . . . . . . . . 2 . 17 . Protector 20 | . . . . . . . . 2 . . . . . . . . . . . . . . . . . . . . . . . . . . . . . . 2 . 16 . Researcher 1 | . . . . . . . . . . . . . . . . . . . . . . . . . . . . . . . . . . . . . . . 1 . . . Sentry 44 | . . . 10 . . . 9 9 . . . . . . . . . . . . . . . . . . 1 2 . . . . . . 3 . . . 2 3 5 . Specialist 4 | . . . . . . . 2 . . . . . . . . . . . . . . . . . . . . . . . . . . . . . . . 2 . . . Hunter 24 | . . . . . . . . . . . . . . . . . . . . . . . 2 1 . . . 2 . . 1 . . . . . . 1 8 . 9 . Programmer 46 | . . . . . . . . . . . . . . . . . . . . . . . 2 2 . . 1 7 . . . . . . . 4 . . 10 3 17 . Heavy 2 | . . . . . . . 1 . . . . . . . . . . . . . . . . . . . . . . . . . . . . . . . 1 . . . Behemoth 2 | . . . . . . . . . . . . . . . . . . . . . . . . 1 . . . 1 . . . . . . . . . . . . . . Cetus Guard 2 | . . . . . . . . . . . . . . . . . . . . . . . . . 2 . . . . . . . . . . . . . . . . . M Guard 2 | . . . . . . . . . . . . . . . . . . . . . . . . . . . . . . . . . . . . . . . . . 2 . Enhanced Grunt 30 | . . . . . . . . . . . . . . . . . . . . . . . . . . . . . . . . . . . . . . . . . . 30 Enhanced Sentry 4 | . . . . . . . . . . . . . . . . . . . . . . . . . . . . . . . . . . . . . . . . . . 4 Enhanced Hunter 7 | . . . . . . . . . . . . . . . . . . . . . . . . . . . . . . . . . . . . . . . . . . 7 Tracker 4 | . . . . . . . . . . . . . . . . . . . . . . . . . . . . . . . . . . . . . . . 2 2 . . Combat Programmer 5 | . . . . . . . . . . . . . . . . . . . . . . . . . . . . . . . . . . . . . . . 1 2 2 . Investigator 3 | . . . . . . . . . . . . . . . . . . . . . . . . . . . . . . . . . . . . . . . . . 3 . Striker 10 | . . . . . . . . . . . . . . . . . . . . . . . . . . . . . . . . . . . . . . . 2 . 8 . Executioner 13 | . . . . . . . . . . . . . . . . . . . . . . . . . . . . . . . . . . . . . . . 3 . 10 . Protovariant H 1 | . . . . . . . . . . . . . . . . . . . . . . . . . . . . . . . . . . . . 1 . . . . . . Zionite 8 | . . . . . 8 . . . . . . . . . . . . . . . . . . . . . . . . . . . . . . . . . . . . . Decomposer 3 | . . . . . . . . . . 3 . . . . . . . . . . . . . . . . . . . . . . . . . . . . . . . . Assembled 8 | . . 1 . . 7 . . . . . . . . . . . . . . . . . . . . . . . . . . . . . . . . . . . . . Savage 1 | . . . . . . . . . . . . . . . . . . . . . . . . 1 . . . . . . . . . . . . . . . . . . Butcher 1 | . . . . . . . . . . . . . . . . . . . . . . . . 1 . . . . . . . . . . . . . . . . . . Best Kill Streak 40 | 3 4 1 5 4 3 . 8 10 1 1 . . . 4 . 2 . 1 1 . 2 . 8 4 4 3 3 8 . 1 1 . 6 . 2 2 2 2 8 11 40 6 Combat Bots Only 37 | . 4 1 5 3 1 . 7 8 1 . . . . 3 . 1 . . . . . . 8 4 4 . 1 8 . 1 1 . 6 . 1 2 . 2 7 8 37 6 Max Kills in Single Turn 7 | 1 1 1 4 1 7 . 4 3 1 1 . . . 2 . 1 . 1 1 . 1 . 4 1 4 1 1 4 . 1 1 . 3 . 1 1 1 1 2 3 4 2 Gunslinging 1 | . . . . . . . . . . . . . . . . . . . . . . . . . . . . . . . . . . . . . . . . . 1 . Exploded 4 | . 1 1 4 . . . 4 2 1 . . . . 2 . . . . . . . . 3 1 4 . . 4 . . 1 . 3 . . . . . 1 . 2 . Melee 1 | . . . . . . . . 1 . . . . . . . 1 . . . . . . 1 . . . 1 1 . 1 . . . . . 1 . . 1 . 1 . Uniques/NPCs Destroyed 15 | . . . . . 4 . . . . . . . . . . . . . 1 . . . . . 1 . . . . . . . . . . . . . . . 2 7 8R-AWN (-9/Exiles) EX-HEX (-9/Exiles) EX-DEC (-9/Exiles) EX-BIN (-9/Exiles) Data Miner (-6/Data Miner) A7 (-5/Cetus) MAIN.C Shell (-1/Command) MAIN.C (-1/Command) A8 (-1/Access_0) A6 (-1/Access_0) A5 (-1/Access_0) A2 (-1/Access_0) A4 (-1/Access_0) Architect (-1/Access_0) A3 (-1/Access_0) Combat | -11 -10 -10 -9 -9 -9 -8 -8 -8 -7 -7 -7 -7 -6 -6 -6 -6 -6 -6 -6 -5 -5 -5 -5 -5 -5 -5 -5 -4 -4 -4 -4 -4 -4 -3 -3 -3 -2 -2 -2 -1 -1 -1 -------- Run | Scr Mat Min Mat Min Exi Min Mat Sto Fac Low Low Zio Pro Fac Was Fac Low Low Dat Pro Fac Was Fac Ext Cet Arc Hub Fac Was Fac Upp Upp War Pro Res Tes Res Qua Sec Acc Com Ac0 Damage Taken 30077 | . 340 106 1309 105 1993 . 2743 2402 97 14 75 . 47 33 . 37 57 . 48 . 502 . 614 580 11 23 375 1748 . 126 43 45 17 . 377 1125 . 277 3185 781 6007 4835 Core 3150 | . 43 35 100 9 270 . 160 181 46 . 30 . 12 18 . 5 . . . . 140 . 195 70 . . 84 366 . 59 43 . . . 23 96 . 27 349 34 327 428 Absorbed by Shields 3480 | . . . . . . . . . . . . . . . . . . . . . . . . . 10 . . . . . . . . . . . . . 48 . 2236 1186 Redirected to Core 244 | . . . . . . . . . . . . . . . . . . . . . . . . . . . . . . . . . . . . . . . 142 . . 102 Redirected to Shielding 781 | . . . . . . . . . . . . . . . . . . . . . . . 31 44 . . 54 255 . 20 . . . . 41 121 . 54 6 . 155 . Regen/Repaired (Parts) 10531 | . . . . . . . . 37 64 . . . . 60 . 103 . . . . . . 290 23 . . . 394 . 123 . . . . . 799 . 139 1576 425 4930 1568 Core Remaining (%) 59 | 100 . 68 . . . 5 . 38 . . . . 87 . . . . . . 97 . . . . . . 51 . . . . . . 59 . 90 . . 37 . . 24 Volleys Fired 1825 | 11 36 6 111 13 157 . 121 86 2 2 . . 1 2 . . . . . . . . 18 74 16 7 29 76 . 4 6 . 5 . 25 18 3 8 230 78 492 188 Largest 5 | 2 2 1 2 2 2 . 2 2 1 1 . . 1 1 . . . . . . . . 1 1 1 1 1 1 . 1 1 . 1 . 3 3 1 1 2 2 5 5 Hottest 560 | 40 40 30 83 46 136 . 126 180 33 33 . . 39 39 . . . . . . . . 80 80 80 61 61 80 . 105 80 . 80 . 282 282 150 94 230 200 500 560 Shots Fired 2666 | 22 70 6 211 27 219 . 209 165 2 2 . . 1 2 . . . . . . . . 18 74 16 7 29 77 . 4 6 . 5 . 60 50 3 8 232 89 772 280 Gun 1638 | 22 68 . 199 27 98 . 31 . . . . . . . . . . . . . . . . . . . . 1 . . . . . . 59 49 . 8 157 59 692 168 Cannon 868 | . . . 5 . 73 . 170 159 . . . . . . . . . . . . . . 2 61 15 7 29 68 . 4 . . . . . 1 3 . 52 30 77 112 Launcher 96 | . 2 6 3 . 2 . 8 6 2 2 . . 1 2 . . . . . . . . 16 13 1 . . 6 . . 6 . 5 . 1 . . . 11 . 3 . Special 64 | . . . 4 . 46 . . . . . . . . . . . . . . . . . . . . . . 2 . . . . . . . . . . 12 . . . Kinetic 1200 | 22 68 . 197 27 98 . 11 . . . . . . . . . . . . . . . 2 61 15 7 29 68 . . . . . . . . . 5 157 59 263 111 Thermal 673 | . . . 11 . 110 . 25 159 . . . . . . . . . . . . . . . . . . . 1 . 4 . . . . 59 50 3 3 50 21 65 112 Explosive 96 | . 2 6 3 . 2 . 8 6 2 2 . . 1 2 . . . . . . . . 16 13 1 . . 6 . . 6 . 5 . 1 . . . 11 . 3 . Electromagnetic 178 | . . . . . 9 . 165 . . . . . . . . . . . . . . . . . . . . . . . . . . . . . . . . . . 4 Slashing 513 | . . . . . . . . . . . . . . . . . . . . . . . . . . . . . . . . . . . . . . . 10 9 441 53 Robot Hit Streak 61 | 6 9 8 20 10 18 . 21 14 . . . . . . . . . . . . . . 1 8 5 7 5 16 . . . . . . 17 16 . 11 14 24 61 31 Robot Miss Streak 7 | 1 3 1 7 2 4 . 3 4 . . . . . 1 . . . . . . . . 2 4 2 1 2 2 . . . . . . 2 2 . 1 6 4 7 6 Penetration Max 4 | . . . . . . . . . . . . . . . . . . . . . . . . 1 . . 1 1 . . . . . . . . . . 2 2 4 1 Secondary Targets 14 | . 1 . . . . . . . . . . . . . . . . . . . . . . . . . . . . . . . . . . . . . . . 12 1 Max Gunslinging Chain 1 | . 1 . . . . . . . . . . . . . . . . . . . . . . . . . . . . . . . . . . . . . . . 1 1 Shots Hit Robots 2107 | 16 44 2 155 18 142 . 147 115 7 4 . . . 1 . 13 . 5 1 . 5 . 22 44 35 21 33 66 . 32 5 . . . 50 60 4 7 183 63 593 214 Core Hits 1769 | 9 28 4 64 7 46 . 87 61 1 . . . . 2 . 4 . 2 1 . 2 . 54 29 13 11 12 35 . 15 8 . 16 . 23 17 2 4 169 81 652 310 Critical Kills 317 | . . . . . 5 . 1 3 . . . . . . . 1 . . . . . . 2 12 2 1 1 5 . . . . . . 3 2 . 2 48 31 170 28 Critical Parts Destroyed 430 | . . . 5 . 4 . 1 1 1 1 . . . . . 4 . . . . 1 . 2 14 4 2 11 18 . . . . . . 3 8 . 7 92 24 207 20 Critical Strikes 878 | . . . 5 . 12 . 9 4 1 1 . . . . . 6 . . . . 1 . 6 26 12 3 15 30 . 4 . . . . 7 11 . 9 148 57 436 75 Burn 3 | . . . . . . . 1 . . . . . . . . . . . . . . . . . . . . . . . . . . . . . . . . . . 2 Meltdown 3 | . . . . . . . . 2 . . . . . . . . . . . . . . . . . . . . . . . . . . . . . . . . 1 . Destroy 768 | . . . 1 . 9 . 2 . . . . . . . . . . . . . . . 1 26 8 3 12 24 . . . . . . 7 10 . 9 145 56 404 51 Blast 14 | . . . . . . . . . . . . . . . . . . . . . . . . . . . . 3 . . . . . . . . . . . . 1 10 Corrupt 7 | . . . . . 1 . 6 . . . . . . . . . . . . . . . . . . . . . . . . . . . . . . . . . . . Smash 17 | . . . 4 . . . . 2 1 1 . . . . . 5 . . . . 1 . 3 . . . . . . . . . . . . . . . . . . . Sever 50 | . . . . . 2 . . . . . . . . . . . . . . . . . . . . . . . . 1 . . . . . 1 . . 3 1 30 12 Impale 16 | . . . . . . . . . . . . . . . . 1 . . . . . . 2 . 4 . 3 3 . 3 . . . . . . . . . . . . Melee Attacks 1159 | . . . 16 6 2 . 1 17 39 7 7 3 7 40 . 62 . 18 35 3 46 . 102 14 27 15 49 75 . 169 7 2 6 . 66 75 14 40 99 15 68 7 Impact 245 | . . . 16 6 2 . 1 17 39 5 3 . 5 18 . 46 . 2 . . 25 . 60 . . . . . . . . . . . . . . . . . . . Slashing 446 | . . . . . . . . . . 2 4 3 . . . . . . . . . . . . . . . . . 38 7 2 6 . 66 75 14 40 99 15 68 7 Piercing 468 | . . . . . . . . . . . . . 2 22 . 16 . 16 35 3 21 . 42 14 27 15 49 75 . 131 . . . . . . . . . . . . Sneak Attacks 135 | . . . 13 . . . . 1 4 4 . . . . . 7 . 1 1 . 2 . 8 5 25 10 4 7 . 11 . . . . 6 9 4 . 3 3 7 . Combat Hostiles 3 | . . . . . . . . . . . . . . . . 1 . . . . . . . . . . 2 . . . . . . . . . . . . . . . Follow-up Attacks 11 | . . . . . . . . . . . . . . . . 1 . . . . . . 3 . . . 4 . . 3 . . . . . . . . . . . . Damage Inflicted 94137 | 160 664 135 3541 350 2686 . 5448 4677 696 472 . . . 311 . 1066 . 213 74 . 433 . 4315 1973 1752 930 1648 3751 . 2324 785 . 1009 . 2080 3100 481 178 9617 2700 22475 14093 Guns 27185 | 160 466 . 1880 318 1017 . 336 . . . . . . . . . . . . . . . . . . . . . . . . . . . 1221 1248 . 64 1749 591 15098 3037 Cannons 27333 | . . . 87 . 964 . 3149 2956 . . . . . . . . . . . . . . 15 740 191 102 309 1117 . . . . . . . . . . 1262 1672 3713 11056 Explosions 13150 | . 186 119 424 . 356 . 1936 1073 120 . . . . 255 . . . . . . . . 2927 837 368 . 107 1408 . . 478 . 1009 . . . . . 1192 . 355 . Melee 25721 | . . . 1059 . . . . 559 576 472 . . . 56 . 1066 . 213 74 . 433 . 1373 396 1193 828 1232 1226 . 2324 307 . . . 859 1852 481 114 5282 437 3309 . Ramming 247 | . 12 16 71 32 . . 27 89 . . . . . . . . . . . . . . . . . . . . . . . . . . . . . . . . . . Kinetic 17744 | 160 466 . 1865 318 1017 . 111 . . . . . . . . . . . . . . . 15 740 191 102 309 1117 . . . . . . . . . 64 1749 591 4608 4321 Thermal 11981 | . . . 122 . 1206 . 978 2956 . . . . . . . . . . . . . . 256 . . . . 600 . . . . . . 1221 1248 . . 480 351 216 2347 Explosive 11520 | . 186 119 424 . 356 . 1294 1073 120 . . . . 255 . . . . . . . . 2671 837 368 . . 783 . . 478 . 1009 . . . . . 1192 . 355 . Electromagnetic 3380 | . . . . . 107 . 3038 . . . . . . . . . . . . . . . . . . . 107 25 . . . . . . . . . . . . . 103 Impact 4568 | . . . 1059 . . . . 559 576 387 . . . 56 . 890 . . . . 278 . 763 . . . . . . . . . . . . . . . . . . . Slashing 36355 | . . . . . . . . . . 85 . . . . . . . . . . . . . . . . . . . 85 307 . . . 859 1852 481 114 6196 1758 17296 7322 Piercing 8342 | . . . . . . . . . . . . . . . . 176 . 213 74 . 155 . 610 396 1193 828 1232 1226 . 2239 . . . . . . . . . . . . Highest Corruption 15 | . . . 1 1 6 . . 10 . . . . . . . . . . . . 2 2 7 7 3 3 7 9 9 9 2 2 2 . . 6 . . 3 3 15 1 Average Corruption 3 | . . . 1 1 1 . . 5 . . . . . . . . . . . . 1 2 4 3 3 2 3 5 9 2 2 2 2 . . 5 . . 1 1 7 1 Corruption Purged 45 | . . . . . 6 . . 5 . . . . . . . . . . . . . . . 5 . 3 . . . 7 . . . . . . . . . . 19 . Corruption Blocked 1 | . . . . . . . . . . . . . . . . . . . . . . . . . . . . . . . . . . . . . 1 . . . . . Effects 471 | . . . 19 13 35 . . 57 . . . . . . . . . . . . . . 47 27 4 5 18 31 2 35 7 1 . . . 27 . . 21 2 107 13 Message Errors 113 | . . . 4 3 9 . . 7 . . . . . . . . . . . . . . 14 10 . 1 5 8 1 8 1 . . . . 8 . . 6 1 24 3 Matter Fused 123 | . . . 6 4 9 . . 14 . . . . . . . . . . . . . . 12 7 1 . 5 9 1 11 3 1 . . . 8 . . 6 . 25 1 Heat Flow Errors 64 | . . . 5 2 4 . . 9 . . . . . . . . . . . . . . 8 3 1 . 2 3 . 5 1 . . . . 1 . . 3 . 17 . Energy Discharges 51 | . . . 1 1 4 . . 4 . . . . . . . . . . . . . . 7 . . 2 2 3 . 7 1 . . . . 2 . . 5 1 10 1 Parts Rejected 3 | . . . . . . . . . . . . . . . . . . . . . . . 1 . . . . 1 . . . . . . . . . . . . 1 . Data Loss (minor) 59 | . . . 3 1 2 . . 10 . . . . . . . . . . . . . . 3 4 1 2 3 5 . 3 1 . . . . 6 . . 1 . 11 3 Data Loss (major) 21 | . . . . 1 3 . . 2 . . . . . . . . . . . . . . 2 1 1 . 1 1 . 1 . . . . . 1 . . . . 4 3 Misfires 15 | . . . . 1 1 . . 8 . . . . . . . . . . . . . . . . . . . 1 . . . . . . . . . . . . 3 1 Alerts 10 | . . . . . 2 . . 2 . . . . . . . . . . . . . . . 2 . . . . . . . . . . . 1 . . . . 3 . Misdirections 1 | . . . . . . . . . . . . . . . . . . . . . . . . . . . . . . . . . . . . . . . . . 1 . Weapon Failures 11 | . . . . . 1 . . 1 . . . . . . . . . . . . . . . . . . . . . . . . . . . . . . . . 8 1 Overload Shots 11 | . . . . . . . . 4 . . . . . . . . . . . . . . . . . . . . . . . . . . . . 1 . . 3 3 . Overflow Damage 6688 | . 6 . 643 . 22 . 39 166 314 442 . . . 60 . 623 . 74 . . 236 . 446 63 54 126 221 244 . 324 90 . 16 . 41 510 189 . 346 284 1037 72 Projectiles 285 | . . . . . 10 . 22 83 . . . . . . . . . . . . . . . . . . . 33 . . . . . . . . . . 5 49 11 72 Explosions 265 | . 6 . . . 12 . 17 6 . . . . . 26 . . . . . . . . 57 . 4 . . 66 . . 23 . 16 . . . . . 32 . . . Melee 6138 | . . . 643 . . . . 77 314 442 . . . 34 . 623 . 74 . . 236 . 389 63 50 126 221 145 . 324 67 . . . 41 510 189 . 309 235 1026 . Knockbacks 68 | . . . 2 . . . 1 2 5 . . . . 1 . 2 . . . . 2 . 1 9 2 . 6 9 . . . . . . . . . . . . . 26 Impact 16 | . . . 2 . . . 1 2 5 . . . . 1 . 2 . . . . 2 . 1 . . . . . . . . . . . . . . . . . . . Kinetic 48 | . . . . . . . . . . . . . . . . . . . . . . . . 7 2 . 5 8 . . . . . . . . . . . . . 26 Secondary 4 | . . . . . . . . . . . . . . . . . . . . . . . . 2 . . 1 1 . . . . . . . . . . . . . . Self-Inflicted Damage 239 | . 7 38 8 . . . 53 110 . . . . . . . . . . . . . . . . . . . . . . . . . . 23 . . . . . . . Shots 10 | . 1 1 1 . . . 2 4 . . . . . . . . . . . . . . . . . . . . . . . . . . 1 . . . . . . . Rammed 26 | . 6 3 7 1 . . 3 6 . . . . . . . . . . . . . . . . . . . . . . . . . . . . . . . . . . Targets Rammed 32 | . 6 3 7 4 . . 5 7 . . . . . . . . . . . . . . . . . . . . . . . . . . . . . . . . . . Kicked . | . . . . . . . . . . . . . . . . . . . . . . . . . . . . . . . . . . . . . . . . . . . Crushed 6 | . . . . 3 . . 2 1 . . . . . . . . . . . . . . . . . . . . . . . . . . . . . . . . . . Highest Temperature 434 | . 30 . 271 214 247 . 349 375 434 6 74 241 11 46 . 14 21 . 16 . 87 . 264 248 182 64 149 261 . 222 173 . 52 . 216 380 . . 141 40 279 252 Average Temperature 65 | . 9 . 50 55 50 . 87 107 95 2 54 110 1 20 . 6 16 . 11 . 30 . 80 42 56 27 79 59 . 81 42 . 21 . 58 175 . . 44 23 109 53 Received Heat Transfer 4157 | . 144 . 519 66 . . 1143 1017 33 9 18 . 21 . . 6 . . . . 54 . 102 105 . . 18 18 . 57 9 . . . 54 27 . 9 135 27 323 243 Effects 8 | . . . . . 1 . . 2 . . . 1 . . . . . . . . . . 2 . . . . 1 . . . . . . . . . . . . . 1 Shutdowns 1 | . . . . . . . . 1 . . . . . . . . . . . . . . . . . . . . . . . . . . . . . . . . . . Energy Bleed 3 | . . . . . 1 . . . . . . 1 . . . . . . . . . . . . . . . 1 . . . . . . . . . . . . . . Interference 3 | . . . . . . . . . . . . . . . . . . . . . . . 2 . . . . . . . . . . . . . . . . . . 1 Damage (minor) 1 | . . . . . . . . 1 . . . . . . . . . . . . . . . . . . . . . . . . . . . . . . . . . . Siege Activations . | . . . . . . . . . . . . . . . . . . . . . . . . . . . . . . . . . . . . . . . . . . . Robots Corrupted 6 | . . . . . 1 . 4 . . . . . . . . . . . . . . . . . . . . . . . . . . . . . . . . . . 1 Combat Hostiles 5 | . . . . . . . 4 . . . . . . . . . . . . . . . . . . . . . . . . . . . . . . . . . . 1 Parts Fried 85 | . . . 6 . . . 23 5 11 1 . . . 2 . 15 . . . . 5 . 12 . . . . . . . . . . . . . . 2 . . . 3 Impact Corruptions 76 | . . . 18 . . . . 7 12 5 . . . 1 . 16 . . . . 5 . 12 . . . . . . . . . . . . . . . . . . . Robots Melted 4 | . . . . . . . . 2 . . . . . . . . . . . . . . . . . . . . . . . . . . . . . . . . 1 1 Combat Hostiles 2 | . . . . . . . . 1 . . . . . . . . . . . . . . . . . . . . . . . . . . . . . . . . . 1 Parts Melted 35 | . . . 1 . 12 . 1 8 . . . . . . . . . . . . . . . . . . . . . . . . . . 3 1 . . . . 3 6 Heat Transferred 13508 | . . . 296 . 1786 . 1366 3868 . . . . . . . . . . . . . . 250 . . . . 350 . . . . . . 1443 1369 . . 386 296 157 1941 Parts Sabotaged 6 | . . . . . . . . . . . . . . . . . . . . . . . 3 . . . . . . . . . . . . . . . 1 . 2 . Parts Stolen . | . . . . . . . . . . . . . . . . . . . . . . . . . . . . . . . . . . . . . . . . . . . Parts Stripped . | . . . . . . . . . . . . . . . . . . . . . . . . . . . . . . . . . . . . . . . . . . . Power Chain Reactions 9 | . . . . . . . 9 . . . . . . . . . . . . . . . . . . . . . . . . . . . . . . . . . . . Missiles Intercepted . | . . . . . . . . . . . . . . . . . . . . . . . . . . . . . . . . . . . . . . . . . . . Alert | -11 -10 -10 -9 -9 -9 -8 -8 -8 -7 -7 -7 -7 -6 -6 -6 -6 -6 -6 -6 -5 -5 -5 -5 -5 -5 -5 -5 -4 -4 -4 -4 -4 -4 -3 -3 -3 -2 -2 -2 -1 -1 -1 ------- Run | Scr Mat Min Mat Min Exi Min Mat Sto Fac Low Low Zio Pro Fac Was Fac Low Low Dat Pro Fac Was Fac Ext Cet Arc Hub Fac Was Fac Upp Upp War Pro Res Tes Res Qua Sec Acc Com Ac0 Peak Influence 6626 | 35 252 84 387 162 . . 746 568 417 . . . . 460 80 352 . . . . 200 85 1424 1597 1198 726 902 799 280 319 . . . . 349 224 196 285 1676 1842 6626 . Initial 1178 | . 22 . . 147 . . . 313 162 . . . . . 2 56 . . . . . 70 59 697 848 479 . 436 225 196 . . . . . 49 86 110 18 1005 1178 . Average 541 | 21 61 12 197 50 . . 352 321 167 . . . . 214 63 127 . . . . 73 76 376 1210 1129 141 263 307 264 120 . . . . 147 105 155 71 440 1374 4677 . Maximum Alert Level 5 | . 1 . 1 . . . 3 2 2 . . . . 2 . 1 . . . . 1 . 4 4 4 3 3 3 1 1 . . . . 1 1 . 1 5 5 5 . Low Security (%) 48 | 100 87 100 57 100 . 100 25 25 64 . . . . 51 100 81 . . . . 99 100 40 . . 75 58 47 . 82 . . . . 68 97 100 88 32 . . . Level 1 18 | . 12 . 42 . . . 45 42 29 . . . . 39 . 18 . . . . . . 20 . . 12 6 13 100 17 . . . . 31 2 . 11 31 . . . Level 2 7 | . . . . . . . 14 32 5 . . . . 9 . . . . . . . . 23 . . 9 32 30 . . . . . . . . . . 16 . . . Level 3 4 | . . . . . . . 14 . . . . . . . . . . . . . . . 10 32 25 3 2 8 . . . . . . . . . . 8 26 . . Level 4 4 | . . . . . . . . . . . . . . . . . . . . . . . 3 67 74 . . . . . . . . . . . . . 11 40 3 . Level 5 11 | . . . . . . . . . . . . . . . . . . . . . . . . . . . . . . . . . . . . . . . . 5 67 . High Security 4 | . . . . . . . . . . . . . . . . . . . . . . . . . . . . . . . . . . . . . . . . 26 28 . Max Security . | . . . . . . . . . . . . . . . . . . . . . . . . . . . . . . . . . . . . . . . . . . . Sterilizations 1 | . . . . . . . 1 . . . . . . . . . . . . . . . . . . . . . . . . . . . . . . . . . . . Squads Dispatched 194 | . 2 . 4 . . . 7 7 6 . . . . 4 . 14 . . . . 8 . 13 7 . . 8 14 . 13 . . . . 7 4 2 5 23 10 36 . Investigation 58 | . 2 . 2 . . . 1 1 3 . . . . 3 . 10 . . . . 5 . 7 . . . 3 6 . 6 . . . . 4 2 2 . . 1 . . Extermination 30 | . . . . . . . . . 2 . . . . 1 . 3 . . . . 1 . 1 . . . 1 5 . 4 . . . . 1 2 . 2 7 . . . Reinforcement 42 | . . . 2 . . . 4 . 1 . . . . . . 1 . . . . 2 . 2 4 . . 4 3 . 3 . . . . 2 . . 3 9 2 . . Assault 55 | . . . . . . . 2 3 . . . . . . . . . . . . . . 3 3 . . . . . . . . . . . . . . 4 4 36 . Garrison 3 | . . . . . . . . 3 . . . . . . . . . . . . . . . . . . . . . . . . . . . . . . . . . . Intercept 6 | . . . . . . . . . . . . . . . . . . . . . . . . . . . . . . . . . . . . . . . 3 3 . . Searches Triggered 1 | . . . . . . . . . . . . . . 1 . . . . . . . . . . . . . . . . . . . . . . . . . . . . Construction Impeded 8 | . . . . . . . . . 1 . . . . . . . . . . . . . . 2 . . 1 . . . . . . . 1 . . . 3 . . . Haulers Reinforced 5 | . . . . . . . . . . . . . . . . . . . . . . . 1 . . . 1 . . 1 . . . . . . . 1 . 1 . . Active Scanning Responses . | . . . . . . . . . . . . . . . . . . . . . . . . . . . . . . . . . . . . . . . . . . . Cargo Convoy Interrupts 1 | . . . . . . . . . . . . . . . . . . . . . . . . . . . . . . 1 . . . . . . . . . . . . Stealth | -11 -10 -10 -9 -9 -9 -8 -8 -8 -7 -7 -7 -7 -6 -6 -6 -6 -6 -6 -6 -5 -5 -5 -5 -5 -5 -5 -5 -4 -4 -4 -4 -4 -4 -3 -3 -3 -2 -2 -2 -1 -1 -1 --------- Run | Scr Mat Min Mat Min Exi Min Mat Sto Fac Low Low Zio Pro Fac Was Fac Low Low Dat Pro Fac Was Fac Ext Cet Arc Hub Fac Was Fac Upp Upp War Pro Res Tes Res Qua Sec Acc Com Ac0 Distress Signals 44 | . . . 3 . . . 2 2 . . . . . 2 . 2 . . . . . . 3 2 1 . . 5 . 2 . . . . 1 1 2 . 2 2 12 . Communications Jammed 94 | . . . . . . . . . . . . . . . . . . . . . . . . . . . 4 4 . 12 . . . . 10 11 . 8 28 13 4 . Distress Signals 83 | . . . . . . . . . . . . . . . . . . . . . . . . . . . 4 4 . 1 . . . . 10 11 . 8 28 13 4 . Times Spotted 1088 | . 15 2 53 6 21 . 70 47 15 7 12 . 5 20 5 14 4 3 4 4 33 4 56 62 12 10 23 51 6 33 2 5 8 . 16 16 1 8 77 27 261 70 Peak Tracking Total 23 | . 4 1 4 2 5 . 6 5 5 2 7 . 3 7 5 3 4 4 3 4 17 5 10 9 5 2 10 7 6 7 2 3 5 . 5 5 1 3 8 8 23 4 Tactical Retreats 134 | . 1 1 1 . 4 . 4 3 3 3 2 . 4 5 . 4 1 . . . 7 . 16 8 1 . 1 10 . 8 . 2 2 . 1 1 . . 12 2 26 1 Traps | -11 -10 -10 -9 -9 -9 -8 -8 -8 -7 -7 -7 -7 -6 -6 -6 -6 -6 -6 -6 -5 -5 -5 -5 -5 -5 -5 -5 -4 -4 -4 -4 -4 -4 -3 -3 -3 -2 -2 -2 -1 -1 -1 ------- Run | Scr Mat Min Mat Min Exi Min Mat Sto Fac Low Low Zio Pro Fac Was Fac Low Low Dat Pro Fac Was Fac Ext Cet Arc Hub Fac Was Fac Upp Upp War Pro Res Tes Res Qua Sec Acc Com Ac0 Traps Triggered 43 | . . . 1 . . . 5 6 2 . . . . 2 . 3 . . . . 1 . 1 2 . . 2 4 . 6 . . . . 1 2 . . 1 3 1 . Indirectly . | . . . . . . . . . . . . . . . . . . . . . . . . . . . . . . . . . . . . . . . . . . . Trap Hack Attempts . | . . . . . . . . . . . . . . . . . . . . . . . . . . . . . . . . . . . . . . . . . . . Triggered . | . . . . . . . . . . . . . . . . . . . . . . . . . . . . . . . . . . . . . . . . . . . Disarmed 5 | . . . . . . . . . . . . . . . . . . . . . . . . . . . . . . . . . . . . . . . . . 5 . Reprogrammed 44 | . . . . . . . . 7 . . . . . . . . . . . . . . 7 6 . . 12 . . 6 . . . . . . . 6 . . . . Reused 17 | . . . . . . . . . . . . . . . . . . . 1 . . . 4 . . . . 2 . 5 . . . . . . . 5 . . . . Traps Extracted 9 | . . . . . . . . . . . . . . . . . . . 2 . . . . . . . 6 1 . . . . . . . . . . . . . . Installed 11 | . . . . . . . . . . . . . . . . . . . 4 . . . . . . . . 4 . 3 . . . . . . . . . . . . Triggered 39 | . . . . . . . . . . 2 1 . . . . . . . . . . . 4 . . . . 2 . 5 . 2 18 . . . . 5 . . . . Most Traps Carried 6 | . . . . . . . . . . 3 3 3 3 3 3 3 3 6 6 4 4 4 4 4 4 4 6 6 3 3 . . . . . . . . . . . . Exploded 1 | . . . . . . . . . . . . . . . . . . . . . . . . . . . . 1 . . . . . . . . . . . . . . Machines | -11 -10 -10 -9 -9 -9 -8 -8 -8 -7 -7 -7 -7 -6 -6 -6 -6 -6 -6 -6 -5 -5 -5 -5 -5 -5 -5 -5 -4 -4 -4 -4 -4 -4 -3 -3 -3 -2 -2 -2 -1 -1 -1 ---------- Run | Scr Mat Min Mat Min Exi Min Mat Sto Fac Low Low Zio Pro Fac Was Fac Low Low Dat Pro Fac Was Fac Ext Cet Arc Hub Fac Was Fac Upp Upp War Pro Res Tes Res Qua Sec Acc Com Ac0 Machines Disabled 147 | . . . 1 2 11 . 4 4 2 . 1 1 . 4 . 6 . . 1 . . . 25 2 2 1 7 8 . . 1 . . . 1 7 1 8 22 3 9 13 Max in Single Turn 6 | . . . 1 1 1 . 2 2 1 . 1 1 . 2 . . . . 1 . . . 4 . 2 . 6 2 . . 1 . . . 1 1 1 1 1 1 2 1 Garrison Access 23 | . . . . . . . . 1 2 . . . . 3 . 1 . . . . 1 . 3 . . . 2 1 . 4 . . . . 3 1 . 1 . . . . Phase Generator 1 | . . . . . . . . . . . . . . . . . . . . . . . . . . . . . . . . . . . . . . . . . 1 . Network Hub 4 | . . . . . . . . . . . . . . . . . . . . . . . . . . . 4 . . . . . . . . . . . . . . . Machines Sabotaged 3 | . . . . . . . . . . . . . . . . . . . . . . . . . . . 3 . . . . . . . . . . . . . . . Garrisons Compromised . | . . . . . . . . . . . . . . . . . . . . . . . . . . . . . . . . . . . . . . . . . . . Overloaded Fab Kills . | . . . . . . . . . . . . . . . . . . . . . . . . . . . . . . . . . . . . . . . . . . . Hacking | -11 -10 -10 -9 -9 -9 -8 -8 -8 -7 -7 -7 -7 -6 -6 -6 -6 -6 -6 -6 -5 -5 -5 -5 -5 -5 -5 -5 -4 -4 -4 -4 -4 -4 -3 -3 -3 -2 -2 -2 -1 -1 -1 --------- Run | Scr Mat Min Mat Min Exi Min Mat Sto Fac Low Low Zio Pro Fac Was Fac Low Low Dat Pro Fac Was Fac Ext Cet Arc Hub Fac Was Fac Upp Upp War Pro Res Tes Res Qua Sec Acc Com Ac0 Machines Accessed 332 | . 10 1 12 . 2 . 7 17 21 1 . . . 25 . 21 . 1 4 . 7 . 30 15 . . 14 19 . 33 1 . 4 . 18 15 4 12 19 5 13 1 Terminals 191 | . 8 1 9 . . . 5 12 10 . . . . 12 . 10 . . . . 3 . 14 12 . . 12 9 . 15 . . . . 8 7 2 9 18 3 12 . Fabricators 38 | . . . . . . . . . 3 . . . . 2 . 5 . . . . 3 . 5 . . . . 5 . 6 . . . . 4 2 2 . . 1 . . Repair Stations 19 | . . . . . . . . 2 2 . . . . 2 . 1 . . . . . . 3 1 . . . 2 . 2 . . . . . 2 . 1 . . 1 . Recycling Units 29 | . 2 . 2 . . . 2 2 2 . . . . 3 . 3 . . . . . . 3 2 . . . 2 . 4 . . . . 1 . . . . 1 . . Scanalyzers 16 | . . . 1 . . . . . 1 . . . . 2 . 1 . . . . . . 2 . . . . . . 2 . . . . 2 3 . 1 1 . . . Garrison Access 25 | . . . . . . . . 1 3 . . . . 4 . 1 . . . . 1 . 3 . . . 2 1 . 4 . . . . 3 1 . 1 . . . . Total Hacks 1363 | . 29 1 33 . 2 . 19 55 58 1 . . . 73 . 77 . 1 30 . 31 . 109 32 . . 51 122 . 155 1 . 8 . 80 105 23 53 71 35 92 16 Successful 961 | . 17 . 22 . 2 . 12 34 34 1 . . . 50 . 54 . 1 30 . 17 . 84 22 . . 40 91 . 124 1 . 8 . 66 76 12 33 50 17 47 16 Failed 396 | . 11 1 10 . . . 7 21 23 . . . . 22 . 23 . . . . 14 . 24 10 . . 10 31 . 31 . . . . 14 29 11 20 21 18 45 . Catastrophic 57 | . . . 3 . . . . 1 2 . . . . 2 . 4 . . . . . . 5 . . . . 5 . 5 . . . . . 1 2 1 6 6 14 . Database Lockouts 6 | . 1 . 1 . . . . . 1 . . . . 1 . . . . . . . . 1 . . . 1 . . . . . . . . . . . . . . . Manual 733 | . 21 . 18 . 1 . 12 36 32 . 1 1 . 42 . 34 . . . . 18 . 52 17 1 . 36 62 . 83 . . 1 . 48 37 14 28 54 23 61 . Terminals 847 | . 24 1 26 . . . 13 41 29 . . . . 44 . 37 . . . . 16 . 58 24 . . 49 75 . 96 . . . . 42 50 11 40 67 22 82 . Fabricators 175 | . . . . . . . . . 10 . . . . 5 . 26 . . . . 14 . 20 . . . . 21 . 26 . . . . 23 10 12 . . 8 . . Repair Stations 112 | . . . . . . . . 7 4 . . . . 5 . 4 . . . . . . 10 4 . . . 15 . 11 . . . . . 33 . 9 . . 10 . Recycling Units 98 | . 5 . 5 . . . 6 5 8 . . . . 12 . 7 . . . . . . 11 4 . . . 10 . 15 . . . . 5 . . . . 5 . . Scanalyzers 40 | . . . 2 . . . . . 2 . . . . 2 . 2 . . . . . . 6 . . . . . . 3 . . . . 7 11 . 1 4 . . . Garrison Access 32 | . . . . . . . . 2 5 . . . . 5 . 1 . . . . 1 . 4 . . . 2 1 . 4 . . . . 3 1 . 3 . . . . Terminal Hacks 428 | . 10 . 11 . 2 . 4 22 14 1 . . . 16 . 15 . 1 30 . 4 . 27 15 . . 22 40 . 53 1 . 8 . 20 21 4 16 29 5 21 16 Record 36 | . . . . . 1 . . 1 . . . . . . . . . . 11 . . . . . . . . . . 1 1 . 2 . 1 . . 1 . . 1 16 Part Schematic 38 | . 2 . 1 . . . . 1 . . . . . 2 . 2 . . 10 . 1 . 1 . . . . 6 . 7 . . . . 2 3 . . . . . . Robot Schematic 8 | . . . . . . . . 1 . . . . . . . . . . 6 . . . . . . . . 1 . . . . . . . . . . . . . . Robot Analysis 27 | . 1 . 2 . . . . 4 1 . . . . . . . . . . . . . 1 4 . . 4 . . 7 . . . . 1 1 . . . . 1 . Prototype ID Bank 12 | . 2 . . . . . . 1 . . . . . . . . . . 3 . . . . . . . . . . 2 . . 4 . . . . . . . . . Open Door 20 | . . . . . . . . 4 . 1 . . . . . . . 1 . . . . 1 6 . . . . . . . . 2 . . . . . 5 . . . Level Access Points 8 | . . . . . . . . . . . . . . . . . . . . . . . . . . . 1 1 . 1 . . . . 1 1 1 1 1 . . . Branch Access Points 11 | . 1 . . . . . . . 1 . . . . 1 . 1 . . . . . . 1 . . . . 1 . 1 . . . . 1 . 1 1 . 1 . . Emergency Access Points 2 | . . . . . . . . . . . . . . . . . . . . . . . 1 . . . . . . . . . . . . . . . 1 . . . Machine Index 9 | . . . . . . . . . . . . . . . . 1 . . . . . . 1 . . . . 1 . 1 . . . . 1 1 1 . 1 . 1 . Terminal Index 9 | . . . . . . . . . 1 . . . . 1 . 1 . . . . . . . . . . 1 . . 1 . . . . 1 . . 1 1 1 . . Fabricator Index 2 | . . . . . . . . . . . . . . . . 1 . . . . . . . . . . . . . . . . . . 1 . . . . . . . Repair Station Index 3 | . . . . . . . . . . . . . . 1 . . . . . . . . . . . . 1 . . . . . . . . . . 1 . . . . Garrison Index 2 | . . . . . . . . . . . . . . . . 1 . . . . . . . . . . 1 . . . . . . . . . . . . . . . Alert Level 23 | . . . 3 . . . 2 4 1 . . . . . . 1 . . . . . . 2 . . . 1 2 . 3 . . . . 1 1 . 1 . . 1 . Unreport Threat 30 | . 1 . 1 . . . . 3 2 . . . . 2 . 1 . . . . . . 3 2 . . . 6 . 2 . . . . 1 1 . 1 3 . 1 . Locate Traps 36 | . 2 . 2 . . . 1 . 4 . . . . 2 . 1 . . . . . . 3 2 . . . 3 . 2 . . . . . 2 . 2 3 1 6 . Disarm Traps 1 | . . . . . . . . . . . . . . . . . . . . . . . . . . . . . . . . . . . . . . . . . 1 . Reprogram Traps 10 | . . . . . . . . 2 . . . . . . . . . . . . . . 2 1 . . 3 . . 1 . . . . . . . 1 . . . . Security Status 2 | . . . 1 . . . . . . . . . . . . . . . . . . . 1 . . . . . . . . . . . . . . . . . . . Surveillance Status 1 | . . . . . . . . . . . . . . . . . . . . . . . . . . . . 1 . . . . . . . . . . . . . . Patrol Status 1 | . . . . . . . . . . . . . . . . . . . . . . . . . . . . 1 . . . . . . . . . . . . . . Investigation Status 2 | . . . . . . . . . . . . . . . . . . . . . . . . . . . . . . 2 . . . . . . . . . . . . Assault Status 2 | . . . . . . . . . . . . . . . . . . . . . . . . . . . . . . . . . . . . . . . . . 2 . Recall Investigation 13 | . . . . . . . . . . . . . . . . 1 . . . . . . 3 . . . . 2 . 4 . . . . 1 2 . . . . . . Recall Extermination 18 | . . . . . . . . . 1 . . . . 1 . 2 . . . . 1 . 1 . . . . 3 . 3 . . . . 1 1 . 2 2 . . . Recall Reinforcements 4 | . . . . . . . . . . . . . . . . . . . . . 1 . . . . . . . . 1 . . . . . . . . 2 . . . Recall Assault 4 | . . . . . . . . . . . . . . . . . . . . . . . 1 . . . . . . . . . . . . . . . 1 . 2 . Hauler Manifests 23 | . 1 . 1 . . . 1 1 1 . . . . 1 . 2 . . . . . . 1 . . . 2 4 . 3 . . . . 2 1 1 . 1 . . . Registered Components 1 | . . . . . . . . . . . . . . . . . . . . . . . . . . . . 1 . . . . . . . . . . . . . . Registered Prototypes 3 | . . . . . . . . . . . . . . 1 . . . . . . . . 1 . . . . . . 1 . . . . . . . . . . . . Zone Layout 65 | . . . . . . . . . 2 . . . . 4 . . . . . . 1 . 3 . . . 8 7 . 10 . . . . 5 7 . 4 7 2 5 . EX-Prototype ID Bank 1 | . . . . . 1 . . . . . . . . . . . . . . . . . . . . . . . . . . . . . . . . . . . . . Activate Exoskeleton 1 | . . . . . . . . . . . . . . . . . . . . . . . . . . . . . . . . . . . . . . . 1 . . . Fabricator Hacks 101 | . . . . . . . . . 4 . . . . 3 . 18 . . . . 6 . 14 . . . . 11 . 16 . . . . 14 7 5 . . 3 . . Network Status 13 | . . . . . . . . . 1 . . . . 1 . 1 . . . . 1 . . . . . . 1 . 4 . . . . 1 1 1 . . 1 . . Load Schematic 52 | . . . . . . . . . 3 . . . . 2 . 10 . . . . 3 . 7 . . . . 5 . 8 . . . . 8 3 2 . . 1 . . Build 36 | . . . . . . . . . . . . . . . . 7 . . . . 2 . 7 . . . . 5 . 4 . . . . 5 3 2 . . 1 . . Repair Station Hacks 88 | . . . . . . . . 4 3 . . . . 5 . 4 . . . . . . 5 2 . . . 12 . 11 . . . . . 26 . 8 . . 8 . Scan Component 44 | . . . . . . . . 3 2 . . . . 2 . 2 . . . . . . 3 1 . . . 5 . 5 . . . . . 13 . 4 . . 4 . Repair 39 | . . . . . . . . 1 1 . . . . 2 . 2 . . . . . . 2 1 . . . 5 . 4 . . . . . 13 . 4 . . 4 . Refit 5 | . . . . . . . . . . . . . . 1 . . . . . . . . . . . . . 2 . 2 . . . . . . . . . . . . Recycling Unit Hacks 21 | . 1 . . . . . 1 1 . . . . . 2 . 2 . . . . . . 3 . . . . 3 . 5 . . . . 1 . . . . 2 . . Report Inventory 11 | . 1 . . . . . . . . . . . . . . 2 . . . . . . 2 . . . . 1 . 3 . . . . 1 . . . . 1 . . Retrieve Matter 1 | . . . . . . . . . . . . . . . . . . . . . . . . . . . . 1 . . . . . . . . . . . . . . Retrieve Components 9 | . . . . . . . 1 1 . . . . . 2 . . . . . . . . 1 . . . . 1 . 2 . . . . . . . . . 1 . . Scanalyzer 36 | . . . 2 . . . . . 1 . . . . 2 . 2 . . . . . . 6 . . . . . . 3 . . . . 7 9 . 1 3 . . . Insert Component 26 | . . . 1 . . . . . 1 . . . . 2 . 1 . . . . . . 4 . . . . . . 2 . . . . 3 8 . 1 3 . . . Analyze 10 | . . . 1 . . . . . . . . . . . . 1 . . . . . . 2 . . . . . . 1 . . . . 4 1 . . . . . . Garrison Access Hacks 23 | . . . . . . . . 1 2 . . . . 3 . 1 . . . . 1 . 3 . . . 2 1 . 4 . . . . 3 1 . 1 . . . . Seal Access 23 | . . . . . . . . 1 2 . . . . 3 . 1 . . . . 1 . 3 . . . 2 1 . 4 . . . . 3 1 . 1 . . . . Unauthorized Hacks 264 | . 6 . 9 . . . 7 6 10 . . . . 19 . 12 . . . . 6 . 26 5 . . 16 24 . 32 . . . . 21 12 3 7 18 7 18 . Terminals 159 | . 3 . 6 . . . 4 3 4 . . . . 11 . 3 . . . . 3 . 14 3 . . 16 10 . 13 . . . . 10 8 . 7 17 6 18 . Track 42 | . . . . . . . . . . . . . . 1 . . . . . . . . 5 . . . 2 4 . 6 . . . . 3 2 . 4 6 2 7 . Assimilate 23 | . . . . . . . . . 1 . . . . 5 . 1 . . . . . . 2 . . . 3 1 . 3 . . . . 2 1 . 1 2 1 . . Botnet 66 | . 2 . 5 . . . 3 2 2 . . . . 4 . 2 . . . . 2 . 3 3 . . 3 2 . 3 . . . . 4 4 . 2 6 3 11 . Detonate 7 | . . . . . . . . . . . . . . . . . . . . . . . 2 . . . 4 1 . . . . . . . . . . . . . . Disrupt 5 | . . . . . . . . . . . . . . . . . . . . . . . 1 . . . 1 1 . . . . . . . . . . 2 . . . Operators 13 | . 1 . 1 . . . 1 1 1 . . . . 1 . . . . . . 1 . 1 . . . . 1 . 1 . . . . 1 1 . . 1 . . . Sabotage 3 | . . . . . . . . . . . . . . . . . . . . . . . . . . . 3 . . . . . . . . . . . . . . . Fabricators 45 | . . . . . . . . . 1 . . . . 2 . 5 . . . . 3 . 5 . . . . 8 . 9 . . . . 7 2 3 . . . . . Report 2 | . . . . . . . . . . . . . . . . . . . . . . . . . . . . 1 . 1 . . . . . . . . . . . . Prioritize 18 | . . . . . . . . . . . . . . . . . . . . . . . 3 . . . . 5 . 4 . . . . 2 2 2 . . . . . Liberate 3 | . . . . . . . . . . . . . . . . 1 . . . . . . 1 . . . . 1 . . . . . . . . . . . . . . Haulers 8 | . . . . . . . . . . . . . . . . 1 . . . . 1 . . . . . . 1 . 2 . . . . 2 . 1 . . . . . Recompile 14 | . . . . . . . . . 1 . . . . 2 . 3 . . . . 2 . 1 . . . . . . 2 . . . . 3 . . . . . . . Repair Stations 1 | . . . . . . . . . . . . . . . . . . . . . . . . . . . . . . . . . . . . 1 . . . . . . Mechanics 1 | . . . . . . . . . . . . . . . . . . . . . . . . . . . . . . . . . . . . 1 . . . . . . Recycling Units 57 | . 3 . 3 . . . 3 3 5 . . . . 6 . 4 . . . . . . 7 2 . . . 6 . 10 . . . . 4 . . . . 1 . . Monitor 4 | . . . . . . . . . . . . . . 1 . . . . . . . . . . . . . 1 . 1 . . . . 1 . . . . . . . Reject 19 | . . . . . . . 1 1 2 . . . . 2 . 3 . . . . . . 3 . . . . 2 . 4 . . . . 1 . . . . . . . Recyclers 8 | . . . . . . . . . 1 . . . . 1 . . . . . . . . 1 1 . . . 1 . 1 . . . . 1 . . . . 1 . . Mask 22 | . 1 . 1 . . . 2 2 2 . . . . 2 . 1 . . . . . . 3 1 . . . 2 . 4 . . . . 1 . . . . . . . Tunnel 4 | . 2 . 2 . . . . . . . . . . . . . . . . . . . . . . . . . . . . . . . . . . . . . . . Scanalyzers 2 | . . . . . . . . . . . . . . . . . . . . . . . . . . . . . . . . . . . . 1 . . 1 . . . Researchers 2 | . . . . . . . . . . . . . . . . . . . . . . . . . . . . . . . . . . . . 1 . . 1 . . . Garrison Access . | . . . . . . . . . . . . . . . . . . . . . . . . . . . . . . . . . . . . . . . . . . . Data Cores Recovered 3 | . . . . . . . . . . . . . . . . . . . . . . . . . . . 1 . . . . . . . . . . . . . 2 . Used 2 | . . . . . . . . . . . . . . . . . . . . . . . . . . . 1 . . . . . . . . . . . . . 1 . Hacking Detections 225 | . 7 1 10 . . . 7 11 18 . . . . 15 . 17 . . . . 6 . 19 11 1 . 10 14 . 15 . . . . 9 13 4 8 12 4 13 . Full Trace Events 32 | . . . . . . . . . 2 . . . . 1 . 5 . . . . 3 . 6 . . . . 5 . 4 . . . . 1 2 2 . . 1 . . Feedback Events 4 | . . . . . . . . . 1 . . . . . . . . . . . 1 . 2 . . . . . . . . . . . . . . . . . . . Corruption 2 | . . . . . . . . . . . . . . . . . . . . . 1 . 1 . . . . . . . . . . . . . . . . . . . Hackware Fried 2 | . . . . . . . . . 1 . . . . . . . . . . . . . 1 . . . . . . . . . . . . . . . . . . . Feedback Blocked . | . . . . . . . . . . . . . . . . . . . . . . . . . . . . . . . . . . . . . . . . . . . Robot Schematics Acquired 16 | . . . . . . . . 1 . . . 4 . . . . . . 6 . . . . . . . . 1 . . . . . . . . . 1 3 . . . Robots Built 6 | . . . . . . . . . . . . . . . . 3 . . . . . . 3 . . . . . . . . . . . . . . . . . . . Authchips . | . . . . . . . . . . . . . . . . . . . . . . . . . . . . . . . . . . . . . . . . . . . Time 245 | . . . . . . . . . . . . . . . . 76 . . . . . . 169 . . . . . . . . . . . . . . . . . . . Total Robot Build Rating 33 | . . . . . . . . . . . . . . . . 15 . . . . . . 18 . . . . . . . . . . . . . . . . . . . Part Schematics Acquired 65 | . 2 . 2 . . . . . . . . 14 . 2 . 3 . . 10 . 1 . 3 . . . . 6 . 6 . . . . 4 3 . 3 6 . . . Parts Built 38 | . . . . . . . . . . . . . . . . 6 . . . . 2 . 6 . . . . 5 . 4 . . . . 9 3 2 . . 1 . . Authchips 14 | . . . . . . . . . . . . . . . . 5 . . . . 2 . 2 . . . . . . . . . . . 4 1 . . . . . . Time 1766 | . . . . . . . . . . . . . . . . 364 . . . . 100 . 392 . . . . 191 . 262 . . . . 169 134 80 . . 74 . . Total Part Build Rating 257 | . . . . . . . . . . . . . . . . 34 . . . . 10 . 32 . . . . 29 . 30 . . . . 73 26 14 . . 9 . . Parts Repaired 39 | . . . . . . . . 1 1 . . . . 2 . 2 . . . . . . 2 1 . . . 5 . 4 . . . . . 13 . 4 . . 4 . Time 1718 | . . . . . . . . 136 32 . . . . 67 . 112 . . . . . . 163 54 . . . 181 . 206 . . . . . 565 . 108 . . 94 . Parts Recycled . | . . . . . . . . . . . . . . . . . . . . . . . . . . . . . . . . . . . . . . . . . . . Recycled Matter . | . . . . . . . . . . . . . . . . . . . . . . . . . . . . . . . . . . . . . . . . . . . Retrieved Matter 166 | . . . . . . . . . . . . . . . . . . . . . . . . . . . . 166 . . . . . . . . . . . . . . Retrieved Components 45 | . . . . . . . 10 10 . . . . . 5 . . . . . . . . 3 . . . . 10 . 5 . . . . . . . . . 2 . . Parts Scanalyzed 8 | . . . 1 . . . . . . . . . . . . 1 . . . . . . 2 . . . . . . 1 . . . . 2 1 . . . . . . Part Schematics Acquired 7 | . . . 1 . . . . . . . . . . . . 1 . . . . . . 2 . . . . . . 1 . . . . 2 . . . . . . . Parts Damaged 1 | . . . . . . . . . . . . . . . . . . . . . . . . . . . . . . . . . . . 1 . . . . . . . Bothacking | -11 -10 -10 -9 -9 -9 -8 -8 -8 -7 -7 -7 -7 -6 -6 -6 -6 -6 -6 -6 -5 -5 -5 -5 -5 -5 -5 -5 -4 -4 -4 -4 -4 -4 -3 -3 -3 -2 -2 -2 -1 -1 -1 ------------ Run | Scr Mat Min Mat Min Exi Min Mat Sto Fac Low Low Zio Pro Fac Was Fac Low Low Dat Pro Fac Was Fac Ext Cet Arc Hub Fac Was Fac Upp Upp War Pro Res Tes Res Qua Sec Acc Com Ac0 Used RIF Installer . | . . . . . . . . . . . . . . . . . . . . . . . . . . . . . . . . . . . . . . . . . . . Robots Hacked 2 | . . . . . . . . . . . . . . . . . . . . . . . . . . . . 1 . . . . . . . . . . 1 . . . Non-combat 1 | . . . . . . . . . . . . . . . . . . . . . . . . . . . . 1 . . . . . . . . . . . . . . Combat . | . . . . . . . . . . . . . . . . . . . . . . . . . . . . . . . . . . . . . . . . . . . Robot Hacks Applied 1 | . . . . . . . . . . . . . . . . . . . . . . . . . . . . 1 . . . . . . . . . . . . . . find_chute 1 | . . . . . . . . . . . . . . . . . . . . . . . . . . . . 1 . . . . . . . . . . . . . . Manual 1 | . . . . . . . . . . . . . . . . . . . . . . . . . . . . . . . . . . . . . . . 1 . . . Relay Couplers Released 2 | . . . . . . . . . . . . . . . . . . . . . . . . . . . 2 . . . . . . . . . . . . . . . Machine Destruction 2 | . . . . . . . . . . . . . . . . . . . . . . . . . . . 2 . . . . . . . . . . . . . . . Fabnet Peak Effective % . | . . . . . . . . . . . . . . . . . . . . . . . . . . . . . . . . . . . . . . . . . . . Robots Rewired 19 | . . . . . . . . . . . . . . . . . . . . . . . . 14 . . . . . . . . 4 . . . . . . . . 1 Allies Hacked 1 | . . . . . . . . . . . . . . . . . . . . . . . . . . . . 1 . . . . . . . . . . . . . . Hacks Repelled . | . . . . . . . . . . . . . . . . . . . . . . . . . . . . . . . . . . . . . . . . . . . Allies | -11 -10 -10 -9 -9 -9 -8 -8 -8 -7 -7 -7 -7 -6 -6 -6 -6 -6 -6 -6 -5 -5 -5 -5 -5 -5 -5 -5 -4 -4 -4 -4 -4 -4 -3 -3 -3 -2 -2 -2 -1 -1 -1 -------- Run | Scr Mat Min Mat Min Exi Min Mat Sto Fac Low Low Zio Pro Fac Was Fac Low Low Dat Pro Fac Was Fac Ext Cet Arc Hub Fac Was Fac Upp Upp War Pro Res Tes Res Qua Sec Acc Com Ac0 Total Allies 91 | . . . . 3 . . . 2 1 . . 5 . 3 19 4 . . . . . . 8 25 5 . 1 1 1 3 . . 4 . 1 1 . 1 1 1 . 1 Largest Group 19 | . . . . 3 2 2 2 2 1 . . 5 5 3 19 14 . . . . . . 6 11 8 7 6 1 1 2 . . 4 . 1 1 1 1 1 1 . 1 Highest-Rated Group 684 | . . . . 40 24 24 24 62 26 . . 120 120 62 684 517 . . . . . . 171 445 649 525 506 26 46 52 . . 226 . 26 45 45 45 211 26 . 91 Highest-Rated Ally 211 | . . . . 16 16 16 16 31 26 . . 31 31 26 50 50 . . . . . . 30 159 159 96 96 26 46 26 . . 65 . 26 45 45 45 211 26 . 91 Total Orders 184 | . . . . . 4 . . . . . . . . 3 . . . . . . . . 10 88 11 4 5 26 . 15 . . 7 . 2 7 1 1 . . . . STAY 45 | . . . . . 2 . . . . . . . . 2 . . . . . . . . 7 7 2 . 3 3 . 5 . . 5 . 2 5 1 1 . . . . ROAM 2 | . . . . . . . . . . . . . . . . . . . . . . . . . . . . 1 . 1 . . . . . . . . . . . . FOLLOW 27 | . . . . . 2 . . . . . . . . 1 . . . . . . . . 3 9 4 . 2 1 . 1 . . 2 . . 2 . . . . . . EXPLORE 38 | . . . . . . . . . . . . . . . . . . . . . . . . 30 1 . . 7 . . . . . . . . . . . . . . RETURN 72 | . . . . . . . . . . . . . . . . . . . . . . . . 42 4 4 . 14 . 8 . . . . . . . . . . . . Ally Attacks 935 | . . . . 19 . . 13 8 . . . . 16 . 84 62 . . . . . . 41 391 49 39 58 69 5 34 . . 14 . . . . . 32 . . 1 Total Damage 25764 | . . . . 133 . . 103 106 . . . . 396 . 3900 2080 . . . . . . 720 8060 1149 1157 2480 1446 155 553 . . 793 . . . . . 2500 . . 33 Kills 133 | . . . . 1 . . . . . . . . 3 . 11 10 . . . . . . 5 53 5 5 12 4 . 2 . . 6 . . . . . 15 . . 1 Allies Corrupted 5 | . . . . . . . . 1 1 . . . . . . . . . . . . . . 2 . . . 1 . . . . . . . . . . . . . . Allies Melted . | . . . . . . . . . . . . . . . . . . . . . . . . . . . . . . . . . . . . . . . . . . . Intel | -11 -10 -10 -9 -9 -9 -8 -8 -8 -7 -7 -7 -7 -6 -6 -6 -6 -6 -6 -6 -5 -5 -5 -5 -5 -5 -5 -5 -4 -4 -4 -4 -4 -4 -3 -3 -3 -2 -2 -2 -1 -1 -1 ------- Run | Scr Mat Min Mat Min Exi Min Mat Sto Fac Low Low Zio Pro Fac Was Fac Low Low Dat Pro Fac Was Fac Ext Cet Arc Hub Fac Was Fac Upp Upp War Pro Res Tes Res Qua Sec Acc Com Ac0 Robot Analysis Total 27 | . 1 . 2 . . . . 4 1 . . . . . . . . . . . . . 1 4 . . 4 . . 7 . . . . 1 1 . . . . 1 . Derelict Logs Recovered 20 | . . 2 . 2 . . . . . 1 2 1 1 . . . 2 3 . 3 . . . . . . . . . . 1 2 . . . . . . . . . . Drone Launches 104 | . . . . . . . . . . . . . . . . . . . . . . . . 66 7 6 . 14 . 11 . . . . . . . . . . . . Drone Recoveries 101 | . . . . . . . . . . . . . . . . . . . . . . . . 66 7 6 . 11 . 11 . . . . . . . . . . . . Exploration | -11 -10 -10 -9 -9 -9 -8 -8 -8 -7 -7 -7 -7 -6 -6 -6 -6 -6 -6 -6 -5 -5 -5 -5 -5 -5 -5 -5 -4 -4 -4 -4 -4 -4 -3 -3 -3 -2 -2 -2 -1 -1 -1 ------------- Run | Scr Mat Min Mat Min Exi Min Mat Sto Fac Low Low Zio Pro Fac Was Fac Low Low Dat Pro Fac Was Fac Ext Cet Arc Hub Fac Was Fac Upp Upp War Pro Res Tes Res Qua Sec Acc Com Ac0 Turns Passed 72733 | 225 2343 1647 4588 1960 5451 25 6677 3358 815 408 205 571 704 675 162 1743 190 414 199 459 615 43 2495 1723 335 6403 831 1816 77 2785 699 220 910 522 1283 1540 244 1542 3099 649 9924 2159 Spaces Moved 79380 | 78 1189 641 1890 777 2041 11 2213 1017 1913 1218 496 1230 1452 1688 356 4392 694 1009 290 1019 1124 141 5081 993 159 973 1457 2741 201 5885 1088 950 1812 954 2492 2724 508 2752 3966 461 12505 4799 Core 638 | 2 . . . . . . . . . . . . . . . . . . . . . . . . . 636 . . . . . . . . . . . . . . . . Treads 8912 | 76 1189 641 1398 777 2041 11 1906 786 13 . . . . . . . . . . . . . . . . . . . . . . . . . . . . . . . 74 . Legs 99 | . . . . . . . . . . . . . . . . . . . . . . . . . . . . . . . . . . . . . . . . . 97 2 Wheels 1030 | . . . 492 . . . 307 231 . . . . . . . . . . . . . . . . . . . . . . . . . . . . . . . . . . Hover 28777 | . . . . . . . . . . . . . . . . . . . . . . . . . . . . . . . . . . . 1235 2724 508 2752 3966 461 12334 4797 Flight 39924 | . . . . . . . . . 1900 1218 496 1230 1452 1688 356 4392 694 1009 290 1019 1124 141 5081 993 159 337 1457 2741 201 5885 1088 950 1812 954 1257 . . . . . . . Fastest Speed 15 | 50 160 240 120 240 160 240 115 150 27 27 22 27 27 19 26 22 22 26 22 22 22 27 25 25 90 25 25 22 15 20 20 20 20 20 16 36 36 36 36 36 33 18 Average Speed 62 | 157 175 240 208 240 223 240 229 230 29 27 26 27 27 26 26 27 25 26 25 28 25 27 26 88 111 607 27 31 20 23 20 20 20 20 30 36 36 39 38 56 44 31 Slowest Speed 1150 | 160 240 240 240 240 240 240 320 326 330 27 27 97 27 27 28 96 26 26 29 29 29 27 97 155 155 1150 99 99 85 167 20 20 90 20 144 136 36 152 256 356 260 260 Overloaded Moves 2013 | . . . . . . . . . . . 23 . . 22 . 10 12 . 23 1 131 . . . . . . . 39 . . . . . 3 . . . . . . 1749 Propulsion Burnouts 1 | . . . . . . . . . . . . . . . . . . . . . . . . . . . . . . . . . . . . . . . . . . 1 Robots Hopped 208 | . . . . . . . . . 13 . . . . 17 . 30 . . . . 11 . 32 . . . 20 25 2 49 . 1 4 . 4 . . . . . . . Cave-ins Triggered 1 | . . . . . . . . 1 . . . . . . . . . . . . . . . . . . . . . . . . . . . . . . . . . . Teleports 9 | . . . . . . . . . . . . . . . . . . . . . . . . . . . . . . . . . . . . . . 4 2 . 1 2 Exploration Rate (%) 74 | 6 97 98 98 99 92 7 96 93 40 92 60 85 96 52 95 61 84 91 82 94 21 74 68 88 52 96 79 44 82 66 87 89 98 92 48 97 14 96 87 16 95 97 Regions Visited 42 Branch Regions 26 Pre-discovered Areas 8 | . 2 . 2 1 1 . . . . . . 1 . . . . . . 1 . . . . . . . . . . . . . . . . . . . . . . . Known Exits Taken 29 | . 1 . 1 . . . 1 . 1 1 1 1 1 . . 1 1 1 1 1 . . 1 1 1 1 1 . . 1 1 1 1 1 1 1 1 1 1 1 . . Unknown Exits Taken 7 | 1 . 1 . 1 1 1 . 1 . . . . . . . . . . . . . . . . . . . . . . . . . . . . . . . . 1 . Scrap Searched 35 | . . 3 . 1 . . . . . 3 3 2 1 . . . 4 7 . 1 . . . . . . . . . . 2 5 . 3 . . . . . . . . Spaces Dug 770 | . . . 2 . 1 . 1 2 30 21 3 . 5 24 . 34 . 9 3 1 29 . 55 3 . . 196 47 . 98 1 2 . . 53 32 12 26 38 16 25 1 Terrain Destroyed 1838 | . 4 47 29 . 24 . 125 81 37 21 3 . 22 24 . 34 . 9 3 1 29 . 291 46 . . 196 186 . 99 46 2 15 . 68 32 12 26 76 29 161 60 Melee 530 | . . . 2 . 1 . 1 2 25 2 3 . 5 24 . 34 . 9 3 1 29 . 55 3 . . 19 46 . 95 1 2 . . 53 31 10 26 24 10 13 1 Projectile 192 | . . . . . 9 . 4 43 . . . . . . . . . . . . . . . . . . . 6 . 4 . . . . . 1 2 . 21 9 38 55 AOE 1053 | . 4 47 27 . 14 . 120 36 12 19 . . 17 . . . . . . . . . 236 43 . . 177 133 . . 45 . 15 . 15 . . . 14 . 79 . Terrain Rammed . | . . . . . . . . . . . . . . . . . . . . . . . . . . . . . . . . . . . . . . . . . . . Walls Destroyed . | . . . . . . . . . . . . . . . . . . . . . . . . . . . . . . . . . . . . . . . . . . . Machines Disabled . | . . . . . . . . . . . . . . . . . . . . . . . . . . . . . . . . . . . . . . . . . . . Actions | -11 -10 -10 -9 -9 -9 -8 -8 -8 -7 -7 -7 -7 -6 -6 -6 -6 -6 -6 -6 -5 -5 -5 -5 -5 -5 -5 -5 -4 -4 -4 -4 -4 -4 -3 -3 -3 -2 -2 -2 -1 -1 -1 --------- Run | Scr Mat Min Mat Min Exi Min Mat Sto Fac Low Low Zio Pro Fac Was Fac Low Low Dat Pro Fac Was Fac Ext Cet Arc Hub Fac Was Fac Upp Upp War Pro Res Tes Res Qua Sec Acc Com Ac0 Total 98140 | 158 1380 742 2306 839 2699 11 3612 1830 2081 1281 559 1465 1749 1849 426 4820 701 1130 376 1178 1360 145 5998 1737 240 1432 1763 3469 234 7005 1548 974 2341 1284 2863 3127 544 3133 5150 745 16523 5333 Wait 12642 | 56 117 72 174 28 342 1 1084 610 36 41 55 215 271 93 49 359 . 98 35 157 183 . 741 527 24 410 208 475 13 820 429 19 434 331 174 200 5 234 652 163 2616 91 Move 78940 | 77 1188 640 1889 776 2040 10 2212 1016 1886 1217 495 1229 1451 1656 355 4332 693 1008 289 1018 1102 140 5018 992 158 972 1418 2694 197 5790 1087 947 1803 953 2484 2723 507 2751 3965 460 12504 4798 Hop 192 | . . . . . . . . . 13 . . . . 15 . 29 . . . . 11 . 30 . . . 18 22 1 45 . 1 4 . 3 . . . . . . . Pick Up 663 | 4 18 5 42 2 39 . 53 14 11 2 . 2 . 8 1 15 . . 3 . 5 1 15 7 1 4 2 16 3 24 . . 5 . 13 29 4 14 24 1 232 44 Fast Attach 475 | 8 1 2 3 . 20 . 23 15 14 2 . 7 8 3 7 3 2 3 1 . 6 1 13 10 5 7 9 14 4 44 9 2 29 . 14 12 . 30 16 2 94 32 Attach 332 | . 1 . 16 . 18 . 28 9 15 2 . . . 2 1 9 . . 1 . 5 2 19 7 . 3 . 22 1 14 . . . . 11 13 2 3 16 4 69 39 Detach 254 | 1 2 . 1 . 16 . 14 4 8 . . . 1 . 1 3 . . 1 . 2 1 14 6 . 2 . 20 1 13 . . 1 . 8 11 . 4 10 3 79 27 Swap 570 | . 5 6 20 5 17 . 21 23 4 6 5 1 5 10 2 9 4 4 6 1 4 . 24 4 4 2 24 34 6 38 2 1 1 . 31 20 5 19 110 16 33 38 Drop 888 | 1 6 8 27 5 48 . 50 23 35 3 . 8 7 8 10 6 2 3 3 . 5 . 16 10 5 10 13 17 8 47 8 2 35 . 16 26 4 30 27 3 291 62 Fire 1825 | 11 36 6 111 13 157 . 121 86 2 2 . . 1 2 . . . . . . . . 18 74 16 7 29 76 . 4 6 . 5 . 25 18 3 8 230 78 492 188 Melee 1074 | . . . 16 6 2 . 1 17 39 6 4 3 5 34 . 48 . 14 33 2 37 . 90 14 27 15 42 75 . 145 7 2 6 . 66 75 14 40 99 15 68 7 Ram . | . . . . . . . . . . . . . . . . . . . . . . . . . . . . . . . . . . . . . . . . . . . Kick . | . . . . . . . . . . . . . . . . . . . . . . . . . . . . . . . . . . . . . . . . . . . Crush 32 | . 6 3 7 4 . . 5 7 . . . . . . . . . . . . . . . . . . . . . . . . . . . . . . . . . . Escape Stasis 167 | . . . . . . . . 6 18 . . . . 18 . 7 . . . . . . . 36 . . . . . 18 . . . . 18 . . . 1 . 45 . Rewire 75 | . . . . . . . . . . . . . . . . . . . . . . . . 50 . . . . . . . . 18 . . . . . . . . 7 Trap 11 | . . . . . . . . . . . . . . . . . . . 4 . . . . . . . . 4 . 3 . . . . . . . . . . . . Miscellaneous . | . . . . . . . . . . . . . . . . . . . . . . . . . . . . . . . . . . . . . . . . . . . Route ------- -11/Scrapyard -10/Materials (discovered 5 exits: *Mat x3 / *Min x2) -10/Mines (discovered 2 exits: *Mat x2) -9/Materials (discovered 5 exits: *Mat x3 / *Min x2) -9/Mines (discovered 4 exits: *Mat x2 / *Exi / *Zio) -9/Exiles (discovered 2 exits: [*Min x2]) -8/Mines -8/Materials (discovered 5 exits: *Fac x3 / *Sto x2) -8/Storage -7/Factory (discovered 5 exits: *Fac x3 / *Low x2) -7/Lower Caves -7/Lower Caves (discovered 2 exits: *Fac / *Zio) -7/Zion (discovered 2 exits: Dee / *Pro) -6/Proximity Caves -6/Factory (discovered 4 exits: *Fac x2 / *Low x2) -6/Waste -6/Factory (discovered 5 exits: *Fac x3 / *Low x2) -6/Lower Caves -6/Lower Caves (discovered 2 exits: *Fac / *Dat) -6/Data Miner -5/Proximity Caves -5/Factory (discovered 3 exits: Upp / Ext x2) -5/Waste -5/Factory (discovered 6 exits: *Fac x2 / *Upp x2 / *Ext x2) -5/Extension (discovered 2 exits: *Fac / *Cet) -5/Cetus -5/Archives (discovered 3 exits: *Fac / *Hub x2) -5/Hub_04(d) (discovered 4 exits: *Fac x4) -4/Factory (discovered 6 exits: *Res x4 / Upp x2) -4/Waste -4/Factory (discovered 6 exits: Res x4 / *Upp x2) -4/Upper Caves -4/Upper Caves (discovered 2 exits: *Res / *War) -4/Warlord -3/Proximity Caves -3/Research (discovered 6 exits: *Res x3 / Arm / *Tes x2) -3/Testing -2/Research (discovered 5 exits: Acc x3 / *Qua x2) -2/Quarantine (discovered 2 exits: *Acc / *Sec) -2/Section 7 -1/Access -1/Command (discovered 3 exits: [*Sur x2] / *Ac0) -1/Access_0 0b11 Command History --------- Turn | Location | Event 15 | -11/Scrapyard | Discovered new exit (range 15) 226 | -11/Scrapyard | Entered Materials 318 | -10/Materials | Build established: Mutant 387 | -10/Materials | Discovered new exit (range 9) 1108 | -10/Materials | Discovered new exit (range 5) 1263 | -10/Materials | Discovered new exit (range 15) 1278 | -10/Materials | Central database locked down 1372 | -10/Materials | Identified exit to Mines 1382 | -10/Materials | Discovered new exit (range 15) 1547 | -10/Materials | Discovered new exit (range 6) 2569 | -10/Materials | Entered Mines 2570 | -10/Mines | Assembled infested the area 2575 | -10/Mines | Assisted by a Guerilla fighting off Assembled 2820 | -10/Mines | Found a damaged Exp. Sensor Array with a note attached 2826 | -10/Mines | Found Prototype Device 2826 | -10/Mines | Identified Exp. Sensor Array 3128 | -10/Mines | Learned 2 Materials zone layouts 3907 | -10/Mines | Discovered new exit (range 9) 4119 | -10/Mines | Discovered new exit (range 3) 4216 | -10/Mines | Entered Materials 4216 | -9/Materials | Evolved 2 slots: Propulsion x1, Utility x1 4217 | -9/Materials | Identified exit to Mines 5166 | -9/Materials | Build established: Scavenger-Mutant 5601 | -9/Materials | Central database locked down 6038 | -9/Materials | Discovered exit to Mines (range 13) 6363 | -9/Materials | Discovered new exit (range 13) 6882 | -9/Materials | Discovered new exit (range 16) 7916 | -9/Materials | Build established: Mutant 8665 | -9/Materials | Discovered new exit (range 4) 8804 | -9/Materials | Entered Mines 8836 | -9/Mines | Met a Derelict bent on vengeance 8916 | -9/Mines | Discovered new exit (range 6) 9246 | -9/Mines | Excavation squad dispatched 9246 | -9/Mines | A large section of the Mines collapsed 9466 | -9/Mines | Received a Rocket Launcher from a helpful Derelict 9702 | -9/Mines | Assisted by bots powering up and referring to "LRC-V3" 9747 | -9/Mines | Discovered new exit (range 5) 9758 | -9/Mines | A Derelict revealed a hidden shortcut to a safe place 10050 | -9/Mines | Deemed a non-threat by the Exiles lab entrance 10050 | -9/Mines | Discovered new exit (range 5) 10461 | -9/Mines | Joined a pair of Derelicts in attacking an 0b10 outpost 10764 | -9/Mines | Entered Exiles 10764 | -9/Exiles | Accompanied by 2 allies 10798 | -9/Exiles | Discovered new exit (range 14) 10852 | -9/Exiles | Met 8R-AWN 11003 | -9/Exiles | Met EX-HEX 11067 | -9/Exiles | Met EX-BIN 11101 | -9/Exiles | Met EX-DEC 11111 | -9/Exiles | Learned location of Zion (-7) 11185 | -9/Exiles | Aligned with FarCom system 11187 | -9/Exiles | Given EX-Vault access code 11245 | -9/Exiles | Opened EX-Vault 11295 | -9/Exiles | Warned to stay clear of 0b10 Research branches 11500 | -9/Exiles | Visited The Gauntlet 11843 | -9/Exiles | Discovered new exit (range 14) 12075 | -9/Exiles | Found AWS/Thermal 12085 | -9/Exiles | Found Chronowheel 12090 | -9/Exiles | Found Superbattery 13735 | -9/Exiles | Attacked by the Exiles 13836 | -9/Exiles | Core integrity fell below 50% 13902 | -9/Exiles | Lost 4 parts (3n1u) 13917 | -9/Exiles | Destroyed 8R-AWN 13933 | -9/Exiles | Found Prototype Device 13933 | -9/Exiles | Identified AS-neutralizer No. 17b 13939 | -9/Exiles | Found Prototype Processor 13953 | -9/Exiles | Found Prototype Ballistic Gun 13953 | -9/Exiles | Identified 8R-AWN's Boregun 13957 | -9/Exiles | Found 8R-AWN's Boregun 14756 | -9/Exiles | Destroyed EX-HEX 14899 | -9/Exiles | Core integrity fell below 20% 14917 | -9/Exiles | Destroyed EX-DEC 14929 | -9/Exiles | Destroyed EX-BIN 14960 | -9/Exiles | Found Prototype Device 14960 | -9/Exiles | Identified System Purifier 15203 | -9/Exiles | Found Prototype Processor 15208 | -9/Exiles | Identified Exp. Targeting Computer 15216 | -9/Exiles | Build established: Scavenger-Mutant 15224 | -9/Exiles | Identified Exp. Core Analyzer 15873 | -9/Exiles | Found Deploy-a-Sentry 16215 | -9/Exiles | Stole four prototypes: Superbattery, Chronowheel, AWS/Thermal, Deploy-a-Sentry 16215 | -9/Exiles | Entered Mines 16215 | -8/Mines | Accompanied by 2 allies 16216 | -8/Mines | Discovered new exit (range 10) 16240 | -8/Mines | Entered Materials 16240 | -8/Materials | Accompanied by 2 allies 16240 | -8/Materials | Evolved 2 slots: Propulsion x1, Utility x1 16241 | -8/Materials | Identified exit to Storage 17141 | -8/Materials | Destroyed 7 combat bots 18191 | -8/Materials | Discovered new exit (range 16) 18716 | -8/Materials | Discovered new exit (range 4) 21714 | -8/Materials | Lost 9 parts (2n5u2w) 21733 | -8/Materials | Destroyed 7 combat bots 21812 | -8/Materials | Discovered new exit (range 13) 21840 | -8/Materials | First assault squad dispatched 21945 | -8/Materials | Build established: Mutant 22008 | -8/Materials | Sterilization system engaged 22008 | -8/Materials | Non-combat units ordered to evacuate 22108 | -8/Materials | Combat units ordered to evacuate 22280 | -8/Materials | Build established: Scavenger-Mutant 22308 | -8/Materials | Ambient heat levels rising (+10) 22458 | -8/Materials | Ambient heat levels rising (+10) 22608 | -8/Materials | Ambient heat levels rising (+10) 22758 | -8/Materials | Ambient heat levels rising (+10) 22908 | -8/Materials | Ambient heat levels rising (+10) 22917 | -8/Materials | Entered Storage 23767 | -8/Storage | Build established: Mutant 24288 | -8/Storage | Met a pair of Derelict thieves 24359 | -8/Storage | Crushed by falling debris 24359 | -8/Storage | Core integrity fell below 50% 24359 | -8/Storage | System corruption reached 10% 24392 | -8/Storage | Destroyed 8 combat bots 24665 | -8/Storage | Build established: Scavenger-Mutant 24670 | -8/Storage | Garrison activated, responded to threat 24917 | -8/Storage | First assault squad dispatched 25179 | -8/Storage | Repaired Broken System Purifier? 25351 | -8/Storage | Discovered new exit (range 6) 26008 | -8/Storage | Build established: Mutant 26275 | -8/Storage | Entered Factory 26275 | -7/Factory | Evolved 2 slots: Propulsion x1, Utility x1 26398 | -7/Factory | Discovered new exit (range 6) 26399 | -7/Factory | Identified exit to Factory 26554 | -7/Factory | Identified exit to Lower Caves 26609 | -7/Factory | Build established: Hacker-Sprinter 26609 | -7/Factory | Hacking Suite fried by hacking feedback 26653 | -7/Factory | Discovered exit to Factory (range 13) 26697 | -7/Factory | Discovered exit to Factory (range 16) 26783 | -7/Factory | Repaired Rocket Launcher? 26829 | -7/Factory | Central database locked down 27090 | -7/Factory | Entered Lower Caves 27274 | -7/Lower Caves | Encountered a Warlord checkpoint 27429 | -7/Lower Caves | Discovered new exit (range 6) 27430 | -7/Lower Caves | Identified exit to Lower Caves 27475 | -7/Lower Caves | Found Alien Artifact 27475 | -7/Lower Caves | Identified Core Expander 27475 | -7/Lower Caves | Installed Core Expander, added new Power slot 27498 | -7/Lower Caves | Entered another Lower Caves area 27583 | -7/Lower Caves | Discovered exit to Factory (range 8) 27610 | -7/Lower Caves | Learned Factory stockpile data 27629 | -7/Lower Caves | Acquired the password to a Derelict Tinkerer's latest research 27691 | -7/Lower Caves | Spotted 4K-C6M(f) 27691 | -7/Lower Caves | Spotted Z2-DME(f) 27692 | -7/Lower Caves | Encountered a Master Thief 27692 | -7/Lower Caves | Encountered a Master Thief 27692 | -7/Lower Caves | Spotted MK-8C4(f) 27692 | -7/Lower Caves | Spotted 6A-K36(f) 27693 | -7/Lower Caves | Spotted PF-LUM(f) 27694 | -7/Lower Caves | Encountered a Master Thief 27695 | -7/Lower Caves | Encountered a Master Thief 27695 | -7/Lower Caves | Encountered a Master Thief 27701 | -7/Lower Caves | Discovered new exit (range 6) 27702 | -7/Lower Caves | Identified exit to Zion 27703 | -7/Lower Caves | Entered Zion 27718 | -7/Zion | Received a visual enhancement algorithm 27802 | -7/Zion | Discovered new exit (range 16) 27806 | -7/Zion | Identified exit to Proximity Caves 27853 | -7/Zion | Learned location of Armory (-3) 27879 | -7/Zion | Found Prototype Device 27879 | -7/Zion | Identified Mobile Refinery Mk. CCLXVII 27898 | -7/Zion | Identified exit to Deep Caves 28001 | -7/Zion | Found Prototype Device 28001 | -7/Zion | Identified Phasing AFG 28083 | -7/Zion | Gained Derelict followers 28274 | -7/Zion | Entered Proximity Caves 28274 | -6/Proximity Caves | Accompanied by 5 allies 28345 | -6/Proximity Caves | Attracted the attention of an 0b10 checkpoint 28912 | -6/Proximity Caves | Discovered exit to Factory (range 7) 28978 | -6/Proximity Caves | Entered Factory 28978 | -6/Factory | Evolved 2 slots: Propulsion x1, Utility x1 28997 | -6/Factory | Discovered new exit (range 7) 28998 | -6/Factory | Identified exit to Lower Caves 29279 | -6/Factory | Discovered new exit (range 9) 29295 | -6/Factory | Discovered new exit (range 3) 29295 | -6/Factory | Identified exit to Factory 29328 | -6/Factory | Search patrols dispatched 29446 | -6/Factory | Central database locked down 29509 | -6/Factory | Repaired Lgt. Armor Plating 29564 | -6/Factory | Repaired Exp. Sensor Array 29653 | -6/Factory | Sucked down chute 29653 | -6/Factory | Entered Waste 29657 | -6/Waste | Spotted C-40 Crusher 29659 | -6/Waste | Spotted C-40 Crusher 29674 | -6/Waste | Spotted C-40 Crusher 29675 | -6/Waste | Spotted C-40 Crusher 29683 | -6/Waste | Warlord forces began an assault 29701 | -6/Waste | Allies destroyed C-40 Crusher 29706 | -6/Waste | Allies destroyed C-40 Crusher 29734 | -6/Waste | Discovered new exit (range 12) 29742 | -6/Waste | Identified exit to Factory 29815 | -6/Waste | Entered Factory 29815 | -6/Factory | Accompanied by 14 allies 29980 | -6/Factory | Repaired Hvy. Pick? 30049 | -6/Factory | Repaired Field Propulsion Array 30073 | -6/Factory | Discovered exit to Lower Caves (range 8) 30402 | -6/Factory | Fabricated G-50 Soldier? 30413 | -6/Factory | Fabricated Adv. Hacking Suite (x1) 30470 | -6/Factory | Fabricated Adv. Hacking Suite? 30563 | -6/Factory | Fabricated Adv. Hacking Suite (x1) 30722 | -6/Factory | Fabricated Biomechanical Wings (x1) 30749 | -6/Factory | Fabricated Adv. System Shield (x1) 30769 | -6/Factory | Discovered exit to Factory (range 5) 30859 | -6/Factory | Fabricated Biomechanical Wings (x1) 30891 | -6/Factory | Discovered exit to Factory (range 8) 31338 | -6/Factory | Discovered exit to Factory (range 16) 31558 | -6/Factory | Entered Lower Caves 31642 | -6/Lower Caves | Identified exit to Lower Caves 31682 | -6/Lower Caves | Encountered a Warlord checkpoint 31748 | -6/Lower Caves | Entered another Lower Caves area 31878 | -6/Lower Caves | Discovered exit to Factory (range 9) 32107 | -6/Lower Caves | Encountered a Warlord checkpoint 32110 | -6/Lower Caves | Learned Factory interactive machine intel 32111 | -6/Lower Caves | Identified exit to Data Miner 32111 | -6/Lower Caves | Learned Factory stockpile data 32137 | -6/Lower Caves | Spotted WQ-AS9(f) 32137 | -6/Lower Caves | Spotted 4X-T60(f) 32137 | -6/Lower Caves | Spotted V1-DVW(f) 32161 | -6/Lower Caves | Encountered a Master Thief 32162 | -6/Lower Caves | Encountered a Master Thief 32162 | -6/Lower Caves | Entered Data Miner 32162 | -6/Data Miner | Discovered new exit (range 6) 32167 | -6/Data Miner | Met Data Miner 32173 | -6/Data Miner | Learned location of Section 7 (-2) 32173 | -6/Data Miner | Acquired the access code to Warlord's prototype stash 32179 | -6/Data Miner | Received God Mode back door access code from Data Miner 32200 | -6/Data Miner | Activated Chronowheel 32217 | -6/Data Miner | Destroyed Data Miner 32221 | -6/Data Miner | Found Prototype Hackware 32223 | -6/Data Miner | Data Conduit disabled 32321 | -6/Data Miner | Found Prototype Hackware 32353 | -6/Data Miner | Identified exit to Proximity Caves 32361 | -6/Data Miner | Entered Proximity Caves 32427 | -5/Proximity Caves | Learned Factory stockpile data 32491 | -5/Proximity Caves | Learned Factory trap positions 32800 | -5/Proximity Caves | Discovered exit to Factory (range 8) 32820 | -5/Proximity Caves | Entered Factory 32820 | -5/Factory | Evolved 2 slots: Utility x2 32821 | -5/Factory | Identified exit to Upper Caves 32821 | -5/Factory | Identified exit to Extension 32822 | -5/Factory | Loaded intel: 85 trap records 32824 | -5/Factory | Loaded intel: 53 interactive machine locations 32935 | -5/Factory | Fabricated Biomechanical Wings? 33038 | -5/Factory | Fabricated Biomechanical Wings? 33435 | -5/Factory | Manually triggered Chute Trap 33435 | -5/Factory | Sucked down chute 33435 | -5/Factory | Entered Waste 33438 | -5/Waste | Spotted C-40 Crusher 33438 | -5/Waste | Spotted C-40 Crusher 33443 | -5/Waste | Spotted C-40 Crusher 33453 | -5/Waste | Spotted C-40 Crusher 33454 | -5/Waste | Lost 3 parts (1p1n1u) 33455 | -5/Waste | Spotted C-40 Crusher 33457 | -5/Waste | Spotted C-40 Crusher 33467 | -5/Waste | Discovered new exit (range 16) 33473 | -5/Waste | Found Broken Adv. Powered Armor 33475 | -5/Waste | Found Prototype Reactor 33475 | -5/Waste | Identified Zero-point Reactor 33478 | -5/Waste | Identified exit to Factory 33478 | -5/Waste | Entered Factory 33584 | -5/Factory | Repaired Broken Exp. Sensor Array 33702 | -5/Factory | Identified Deep Network Scanner 33702 | -5/Factory | Identified Ghost Barrier 33821 | -5/Factory | Repaired Broken Adv. Powered Armor 33862 | -5/Factory | Central database locked down 34432 | -5/Factory | Fabricated Biomechanical Wings (x1) 34452 | -5/Factory | Discovered new exit (range 9) 34454 | -5/Factory | Identified exit to Factory 34470 | -5/Factory | Discovered exit to Factory (range 7) 34646 | -5/Factory | Fabricated B-60 Warrior (x3) 34739 | -5/Factory | Fabricated Mni. Smartbomb Launcher (x1) 34845 | -5/Factory | Fabricated Biomechanical Wings? 34880 | -5/Factory | Build established: Wizard-Sprinter 34886 | -5/Factory | Fabricated Exp. Propulsion Shielding (x1) 35272 | -5/Factory | Build established: Hacker-Sprinter 35278 | -5/Factory | First assault squad dispatched 35346 | -5/Factory | Spotted B-75 Beast 35532 | -5/Factory | Adv. Hacking Suite fried by hacking feedback 35542 | -5/Factory | Fabricated Exp. Utility Shielding? 35834 | -5/Factory | Fabricated Combat Drone Bay (x1) 35971 | -5/Factory | Destroyed 8 combat bots 35973 | -5/Factory | Entered Extension 36255 | -5/Extension | Build established: Machinist-Mutant 36273 | -5/Extension | First assault squad dispatched 36289 | -5/Extension | Rescued a captive Derelict 36290 | -5/Extension | Rescued a captive Derelict 36302 | -5/Extension | Rescued a captive Derelict 36303 | -5/Extension | Rescued a captive Derelict 36434 | -5/Extension | Rescued a captive Derelict 36435 | -5/Extension | Rescued a captive Derelict 36574 | -5/Extension | Repaired Exp. Sensor Array 36857 | -5/Extension | Destroyed B-75 Beast 36865 | -5/Extension | Allies destroyed B-75 Beast 36973 | -5/Extension | Disrupted transfer network 37097 | -5/Extension | Rescued a captive Derelict 37099 | -5/Extension | Rescued a captive Derelict 37464 | -5/Extension | Rescued A7 37479 | -5/Extension | Rescued a captive Derelict 37497 | -5/Extension | Rescued a captive Derelict 37681 | -5/Extension | Discovered exit to Factory (range 10) 37683 | -5/Extension | Discovered new exit (range 6) 37691 | -5/Extension | Identified exit to Cetus 37696 | -5/Extension | Entered Cetus 37696 | -5/Cetus | Accompanied by 3 allies (A7) 37701 | -5/Cetus | Acquired a Cetus Manufacturing Module code from A7 37712 | -5/Cetus | Spotted Cetus Guard 37720 | -5/Cetus | Destroyed Cetus Guard 37722 | -5/Cetus | Destroyed Cetus Guard 37726 | -5/Cetus | Allies destroyed Cetus Guard 37734 | -5/Cetus | Allies destroyed Cetus Guard 37809 | -5/Cetus | Started Cetus Manufacturing Module 37834 | -5/Cetus | Manufactured an Enhanced Grunt 37859 | -5/Cetus | Manufactured an Enhanced Grunt 37884 | -5/Cetus | Manufactured an Enhanced Grunt 37909 | -5/Cetus | Manufactured an Enhanced Grunt 37934 | -5/Cetus | Manufactured an Enhanced Grunt 37937 | -5/Cetus | Destroyed A7 37938 | -5/Cetus | Extracted ID and sensor layout for unrecognized location from A7's data core 37958 | -5/Cetus | Discovered new exit (range 20) 37986 | -5/Cetus | Identified exit to Archives 38031 | -5/Cetus | Entered Archives 38031 | -5/Archives | Accompanied by 7 allies 38058 | -5/Archives | Discovered new exit (range 24) 38136 | -5/Archives | Discovered exit to Factory (range 14) 38301 | -5/Archives | Discovered new exit (range 15) 38606 | -5/Archives | Build established: Machinist-Sprinter 39005 | -5/Archives | Build established: Machinist-Mutant 44413 | -5/Archives | Identified exit to Hub_04(d) 44434 | -5/Archives | Entered Hub_04(d) 44434 | -5/Hub_04(d) | Accompanied by 5 allies 44601 | -5/Hub_04(d) | Spotted B-75 Beast 44646 | -5/Hub_04(d) | Discovered exit to Factory (range 20) 44707 | -5/Hub_04(d) | Central database locked down 45060 | -5/Hub_04(d) | Found Prototype Device 45060 | -5/Hub_04(d) | Identified Exp. Thermal Shield 45181 | -5/Hub_04(d) | Network Hub disabled 45193 | -5/Hub_04(d) | Build established: Hacker-Sprinter 45247 | -5/Hub_04(d) | Network Hub disabled 45254 | -5/Hub_04(d) | Network Hub disabled 45258 | -5/Hub_04(d) | Network Hub disabled 45263 | -5/Hub_04(d) | Spotted Lightning 45263 | -5/Hub_04(d) | Spotted Lightning 45265 | -5/Hub_04(d) | Entered Factory 45265 | -4/Factory | Evolved 2 slots: Propulsion x1, Utility x1 45446 | -4/Factory | Identified exit to Upper Caves 45446 | -4/Factory | Identified exit to Research 45519 | -4/Factory | Repaired Mni. Smartbomb Launcher? 45796 | -4/Factory | Build established: Wizard-Sprinter 45924 | -4/Factory | Fabricated Biomechanical Wings (x1) 45935 | -4/Factory | Fabricated Exp. Utility Shielding (x1) 46035 | -4/Factory | Found Exp. System Shield 46077 | -4/Factory | Spotted B-86 Titan 46104 | -4/Factory | Noticed a derelict Sapper rigging charges 46299 | -4/Factory | Destroyed 8 combat bots 46415 | -4/Factory | Repaired Exp. Propulsion Shielding 46433 | -4/Factory | Repaired Lyr. Light Armor Plating 46461 | -4/Factory | Repaired Biomechanical Wings 46491 | -4/Factory | Repaired Exp. Utility Shielding 46688 | -4/Factory | Fabricated Combat Drone Bay (x1) 46967 | -4/Factory | Destroyed B-86 Titan 47060 | -4/Factory | Fabricated Exp. Signal Interpreter (x1) 47073 | -4/Factory | Fabricated Combat Drone Bay (x1) 47081 | -4/Factory | Sucked down chute 47081 | -4/Factory | Entered Waste 47082 | -4/Waste | Met a frightened Derelict 47083 | -4/Waste | Found Adv. Force Booster 47092 | -4/Waste | Spotted C-40 Crusher 47093 | -4/Waste | Spotted C-40 Crusher 47094 | -4/Waste | Spotted C-40 Crusher 47098 | -4/Waste | Spotted C-40 Crusher 47100 | -4/Waste | Spotted C-40 Crusher 47121 | -4/Waste | Spotted C-40 Crusher 47144 | -4/Waste | Discovered new exit (range 12) 47156 | -4/Waste | Identified exit to Factory 47158 | -4/Waste | Entered Factory 47595 | -4/Factory | Found Prototype Device 47718 | -4/Factory | Identified Exp. Thermal Defense Suite 47733 | -4/Factory | Repaired Mni. Smartbomb Launcher 47742 | -4/Factory | Repaired Adv. Force Booster? 47791 | -4/Factory | Repaired Biomechanical Wings 47832 | -4/Factory | Repaired Biomechanical Wings 48162 | -4/Factory | Fabricated Zero-point Reactor? 48458 | -4/Factory | Build established: Wizard-Scout 48513 | -4/Factory | Spotted B-86 Titan 48905 | -4/Factory | Build established: Wizard-Sprinter 49258 | -4/Factory | Fabricated Adv. Powered Armor? 49381 | -4/Factory | Cargo convoy interrupted 49474 | -4/Factory | Fabricated Adv. Hacking Suite (x1) 49620 | -4/Factory | Fabricated Exp. Hacking Suite (x1) 49943 | -4/Factory | Entered Upper Caves 49986 | -4/Upper Caves | Encountered a Warlord checkpoint 49987 | -4/Upper Caves | Learned Research stockpile data 50611 | -4/Upper Caves | Discovered new exit (range 9) 50617 | -4/Upper Caves | Found Alien Artifact 50617 | -4/Upper Caves | Identified Dimensional Node Initializer 50617 | -4/Upper Caves | Initialized slip node 50642 | -4/Upper Caves | Attracted the attention of an 0b10 checkpoint 50642 | -4/Upper Caves | Identified exit to Upper Caves 50642 | -4/Upper Caves | Entered another Upper Caves area 50667 | -4/Upper Caves | Discovered exit to Research (range 9) 50703 | -4/Upper Caves | Learned Research stockpile data 50824 | -4/Upper Caves | Learned Research emergency access door positions 50827 | -4/Upper Caves | Discovered new exit (range 8) 50829 | -4/Upper Caves | Identified exit to Warlord 50862 | -4/Upper Caves | Entered Warlord 50877 | -4/Warlord | Discovered new exit (range 8) 50894 | -4/Warlord | System corruption cleaned by Quarantine Array 50989 | -4/Warlord | Found Signal Generator 51020 | -4/Warlord | Warlord's base attacked by MAIN.C 51058 | -4/Warlord | Found Prototype Energy Cannon 51058 | -4/Warlord | Identified Vortex Cannon 51060 | -4/Warlord | Found Prototype Piercing Weapon 51060 | -4/Warlord | Identified Vortex Lance 51082 | -4/Warlord | Found Prototype Special Weapon 51082 | -4/Warlord | Identified RU-N14's Throwing Claymores v3 51096 | -4/Warlord | Met Warlord 51098 | -4/Warlord | Opened Warlord's prototype stash 51099 | -4/Warlord | Found Prototype Device 51099 | -4/Warlord | Identified Exp. Phase Shifter 51104 | -4/Warlord | Found Prototype Device 51104 | -4/Warlord | Identified System Purifier 51108 | -4/Warlord | Found Prototype Reactor 51108 | -4/Warlord | Identified Vortex Chain Reactor 51213 | -4/Warlord | Found Prototype Ballistic Cannon 51213 | -4/Warlord | Identified Hvy. Autocannon 51370 | -4/Warlord | Warlord forces counterattacked 51463 | -4/Warlord | Spotted Striker 51490 | -4/Warlord | Spotted Striker 51577 | -4/Warlord | Spotted Striker 51695 | -4/Warlord | Warlord base infiltrated, sounded retreat 51772 | -4/Warlord | Identified exit to Proximity Caves 51772 | -4/Warlord | Entered Proximity Caves 52073 | -3/Proximity Caves | Received a Behemoth hack from an annoying Tinkerer 52271 | -3/Proximity Caves | Discovered exit to Research (range 13) 52294 | -3/Proximity Caves | Entered Research 52294 | -3/Research | Evolved 2 slots: Utility x1, Weapon x1 52295 | -3/Research | Identified exit to Armory 52317 | -3/Research | Discovered new exit (range 9) 52360 | -3/Research | Identified exit to Testing 52548 | -3/Research | Fabricated Cmb. Linear Gravjet? 52569 | -3/Research | Fabricated Cmb. Linear Gravjet? 52750 | -3/Research | Fabricated Cmb. Linear Gravjet (x2) 52759 | -3/Research | Fabricated Hcp. Storage Unit (x1) 53284 | -3/Research | Found Prototype Processor 53287 | -3/Research | Fabricated Cmb. Linear Gravjet (x2) 53321 | -3/Research | Identified Exp. Target Analyzer 53324 | -3/Research | Build established: Wizard-Mutant 53498 | -3/Research | Identified exit to Research 53577 | -3/Research | Entered Testing 53589 | -3/Testing | Found Prototype Slashing Weapon 53618 | -3/Testing | Identified Vibroblade 53638 | -3/Testing | Found Prototype Energy Cannon 53647 | -3/Testing | Spotted PH-OF5GAW06RT 53696 | -3/Testing | Repaired Broken Hvy. Dispersion Rifle? 53717 | -3/Testing | Destroyed PH-OF5GAW06RT 53762 | -3/Testing | Found Prototype Launcher 53762 | -3/Testing | Identified Z-bomb Delivery System 53769 | -3/Testing | Repaired Adv. Powered Armor? 53778 | -3/Testing | Found Prototype Device 53782 | -3/Testing | Found Prototype Device 53803 | -3/Testing | Identified Exp. ECM Suite 53803 | -3/Testing | Identified Adv. Kinecellerator 53831 | -3/Testing | Repaired Cmb. Linear Gravjet? 53893 | -3/Testing | Repaired Hvy. Dispersion Rifle? 53921 | -3/Testing | Found Prototype Ballistic Gun 53954 | -3/Testing | Repaired Hvy. Dispersion Rifle? 54074 | -3/Testing | Fabricated Adv. Cloaking Device (x1) 54082 | -3/Testing | Repaired Exp. Sensor Array? 54145 | -3/Testing | Repaired Hvy. Dispersion Rifle 54185 | -3/Testing | Repaired Cmb. Linear Gravjet 54223 | -3/Testing | Repaired Cmb. Linear Gravjet? 54438 | -3/Testing | Identified Cld. Nova Cannon 54676 | -3/Testing | Repaired Adv. Powered Armor? 54751 | -3/Testing | Identified Hyp. Multirail 54769 | -3/Testing | Repaired Exp. Cooling System? 54944 | -3/Testing | Fabricated Zero-point Reactor? 54946 | -3/Testing | Fabricated Exp. Target Analyzer (x1) 54963 | -3/Testing | Repaired Cmb. Linear Gravjet? 55022 | -3/Testing | Repaired Mni. Smartbomb Launcher? 55117 | -3/Testing | Entered Research 55117 | -2/Research | Accompanied by 1 ally 55117 | -2/Research | Warlord forces began assault on 0b10 55117 | -2/Research | Evolved 2 slots: Utility x2 55123 | -2/Research | Found Exp. Core Analyzer 55132 | -2/Research | Spotted B-90 Cyclops 55138 | -2/Research | Identified exit to Quarantine 55171 | -2/Research | Spotted B-90 Cyclops 55187 | -2/Research | Fabricated Exp. Weapon Cycler? 55198 | -2/Research | Fabricated Exp. Utility Shielding? 55198 | -2/Research | Identified exit to Access 55208 | -2/Research | Met up with Warlord 55227 | -2/Research | Research machine network offline 55361 | -2/Research | Entered Quarantine 55373 | -2/Quarantine | Spotted Alpha 7 55385 | -2/Quarantine | Build established: Wizard-Ninja 55493 | -2/Quarantine | Found Alien Artifact 55493 | -2/Quarantine | Identified Phase Armor 55532 | -2/Quarantine | Cryocooling Duct disabled 55547 | -2/Quarantine | Ambient heat levels rising (+20) 55547 | -2/Quarantine | Non-combat units ordered to evacuate 55725 | -2/Quarantine | Found Alien Artifact 55725 | -2/Quarantine | Identified Subatomic Replicator 55734 | -2/Quarantine | Found Alien Artifact 55813 | -2/Quarantine | Identified Core Reset Matrix 55868 | -2/Quarantine | Repaired Exp. Sensor Array? 56110 | -2/Quarantine | Found Alien Reactor 56110 | -2/Quarantine | Identified Matter Drive 56322 | -2/Quarantine | Found Alien Energy Cannon 56322 | -2/Quarantine | Identified Core Cannon 56342 | -2/Quarantine | Found Dimensional Node Initializer 56342 | -2/Quarantine | Initialized slip node 56345 | -2/Quarantine | Found Alien Artifact 56345 | -2/Quarantine | Identified Hpw. Transdimensional Reconstructor 56345 | -2/Quarantine | Warped through subspace to slip node 56349 | -2/Quarantine | Found Alien Artifact 56349 | -2/Quarantine | Identified Transdimensional Reconstructor 56349 | -2/Quarantine | Warped through subspace to slip node 56379 | -2/Quarantine | Found Alien Slashing Weapon 56379 | -2/Quarantine | Identified Sigix Broadsword 56384 | -2/Quarantine | Found Alien Artifact 56385 | -2/Quarantine | Identified Phase Redirector 56459 | -2/Quarantine | Found Dimensional Node Initializer 56459 | -2/Quarantine | Initialized slip node 56462 | -2/Quarantine | Found Dimensional Node Initializer 56462 | -2/Quarantine | Initialized slip node 56463 | -2/Quarantine | Repaired Cmb. Linear Gravjet? 56471 | -2/Quarantine | Found Hpw. Transdimensional Reconstructor 56471 | -2/Quarantine | Warped through subspace to slip node 56482 | -2/Quarantine | Found Transdimensional Reconstructor 56482 | -2/Quarantine | Warped through subspace to slip node 56529 | -2/Quarantine | Repaired Cmb. Linear Gravjet 56555 | -2/Quarantine | Repaired Adv. Cloaking Device 56830 | -2/Quarantine | Found Alien Artifact 56833 | -2/Quarantine | Found Alien Artifact 56842 | -2/Quarantine | Identified Terrabomb (x2) 56842 | -2/Quarantine | Used Terrabomb 56844 | -2/Quarantine | Used Terrabomb 56871 | -2/Quarantine | Spotted Fortress 56896 | -2/Quarantine | Discovered new exit (range 6) 56902 | -2/Quarantine | Identified exit to Section 7 56903 | -2/Quarantine | Entered Section 7 57228 | -2/Section 7 | Found Alien Artifact 57252 | -2/Section 7 | Identified Integrated Reactor 57252 | -2/Section 7 | Installed Integrated Reactor, increased core energy generation (+10) 57316 | -2/Section 7 | Found Alien Artifact 57570 | -2/Section 7 | Identified Integrated Dissipator 57570 | -2/Section 7 | Installed Integrated Dissipator, increased core heat dissipation (+20) 57599 | -2/Section 7 | Found Alien Artifact 57616 | -2/Section 7 | Identified Integrated Mediator 57616 | -2/Section 7 | Installed Integrated Mediator, increased core attachment efficiency. 57663 | -2/Section 7 | Found Alien Artifact 57802 | -2/Section 7 | Spotted B-90 Cyclops 57902 | -2/Section 7 | Spotted Executioner 57903 | -2/Section 7 | Spotted Executioner 57930 | -2/Section 7 | Destroyed Executioner 57936 | -2/Section 7 | Destroyed Executioner 58068 | -2/Section 7 | Found Alien Energy Gun 58068 | -2/Section 7 | Identified Sigix Sheargun 58071 | -2/Section 7 | Identified Spacefold Activator 58079 | -2/Section 7 | Spotted Striker 58079 | -2/Section 7 | Spotted Striker 58091 | -2/Section 7 | Destroyed Striker 58094 | -2/Section 7 | Destroyed Striker 58105 | -2/Section 7 | Found Alien Energy Cannon 58105 | -2/Section 7 | Identified Sigix Shearcannon 58127 | -2/Section 7 | Found Sigix Sheargun 58128 | -2/Section 7 | Found Sigix Sheargun 58169 | -2/Section 7 | Spotted B-99 Colossus 58188 | -2/Section 7 | Found Alien Artifact 58188 | -2/Section 7 | Identified Integrity Redistributor 58188 | -2/Section 7 | Used Integrity Redistributor, redistributed integrity from core (-104) 58235 | -2/Section 7 | Found Alien Artifact 58235 | -2/Section 7 | Identified LRC Storage 58235 | -2/Section 7 | Installed LRC Storage, increased inventory capacity (+2) 58242 | -2/Section 7 | Found Alien Artifact 58242 | -2/Section 7 | Identified LRC Armor 58242 | -2/Section 7 | Installed LRC Armor, increased core integrity (+250) 58316 | -2/Section 7 | Befriended a Behemoth using the annoying Tinkerer's hack 58327 | -2/Section 7 | Found Integrity Redistributor 58328 | -2/Section 7 | Found Integrity Redistributor 58422 | -2/Section 7 | Build established: Machinist-Ninja 58453 | -2/Section 7 | Spotted Executioner 58454 | -2/Section 7 | Spotted Executioner 58455 | -2/Section 7 | Allies destroyed Executioner 58457 | -2/Section 7 | Destroyed Executioner 58526 | -2/Section 7 | Found Sigix Sheargun 58528 | -2/Section 7 | Found Sigix Sheargun 58543 | -2/Section 7 | Found Exp. Core Analyzer 58748 | -2/Section 7 | Build established: Machinist-Mutant 58903 | -2/Section 7 | First assault squad dispatched 59193 | -2/Section 7 | Found Integrated Dissipator 59193 | -2/Section 7 | Installed Integrated Dissipator, increased core heat dissipation (+20) 59502 | -2/Section 7 | Found Transdimensional Reconstructor 59502 | -2/Section 7 | Warped through subspace 59563 | -2/Section 7 | Found Transdimensional Reconstructor 59756 | -2/Section 7 | Destroyed 7 combat bots 59758 | -2/Section 7 | Scanned by Researcher 59759 | -2/Section 7 | Intercept squad dispatched 59767 | -2/Section 7 | Spotted Tracker 59768 | -2/Section 7 | Spotted Tracker 59773 | -2/Section 7 | Destroyed Tracker 59776 | -2/Section 7 | Destroyed Tracker 59784 | -2/Section 7 | Spotted Combat Programmer 59785 | -2/Section 7 | Core integrity fell below 50% 59785 | -2/Section 7 | Spotted Combat Programmer 59790 | -2/Section 7 | Warped through subspace 59909 | -2/Section 7 | Destroyed Combat Programmer 59924 | -2/Section 7 | Found Transdimensional Reconstructor 59989 | -2/Section 7 | Spotted S7 Guard 59997 | -2/Section 7 | Found Sigix Shearcannon 60002 | -2/Section 7 | Entered Access 60002 | -1/Access | Evolved 2 slots: Weapon x2 60009 | -1/Access | Found Antimissile System 60078 | -1/Access | Spotted B-99 Colossus 60176 | -1/Access | Identified exit to Command 60230 | -1/Access | Spotted B-99 Colossus 60388 | -1/Access | Intercept squad dispatched 60395 | -1/Access | Spotted Tracker 60396 | -1/Access | Spotted Tracker 60399 | -1/Access | Destroyed 8 combat bots 60399 | -1/Access | Destroyed Tracker 60400 | -1/Access | Destroyed Tracker 60416 | -1/Access | Spotted Combat Programmer 60421 | -1/Access | Destroyed Combat Programmer 60424 | -1/Access | Fabricated Exp. Reaction Control System? 60447 | -1/Access | Spotted Combat Programmer 60450 | -1/Access | Destroyed Combat Programmer 60476 | -1/Access | High security lockdown imminent 60556 | -1/Access | High security lockdown engaged 60651 | -1/Access | Entered Command 60755 | -1/Command | Found Antimissile System 60834 | -1/Command | Repaired Adv. Powered Armor 60859 | -1/Command | Repaired Cmb. Linear Gravjet 60891 | -1/Command | Repaired Cmb. Linear Gravjet 60901 | -1/Command | First assault squad dispatched 60919 | -1/Command | Repaired Cmb. Linear Gravjet 61005 | -1/Command | Build established: Hacker-Mutant 61098 | -1/Command | Spotted B-99 Colossus 61120 | -1/Command | High security lockdown imminent 61200 | -1/Command | High security lockdown engaged 61225 | -1/Command | Used Subatomic Replicator to replicate 2N-1CE's Frost Array 61385 | -1/Command | Destroyed 13 combat bots 61428 | -1/Command | Destroyed Investigator 61496 | -1/Command | Spotted M Guard 61496 | -1/Command | Spotted M Guard 61499 | -1/Command | Spotted Combat Programmer 61499 | -1/Command | Spotted Combat Programmer 61500 | -1/Command | Destroyed 22 combat bots 61535 | -1/Command | Destroyed Combat Programmer 61537 | -1/Command | Destroyed Combat Programmer 61616 | -1/Command | Spotted Executioner 61617 | -1/Command | Spotted Executioner 61617 | -1/Command | Destroyed Executioner 61619 | -1/Command | Destroyed Executioner 61634 | -1/Command | Destroyed Striker 61635 | -1/Command | Destroyed Executioner 61654 | -1/Command | Found Exp. Core Analyzer 61682 | -1/Command | Destroyed 23 combat bots 61754 | -1/Command | Spotted Executioner 61755 | -1/Command | Destroyed Executioner 61760 | -1/Command | Spotted Investigator 61762 | -1/Command | Destroyed Investigator 61772 | -1/Command | Spotted Executioner 61774 | -1/Command | Spotted Striker 61777 | -1/Command | Destroyed Executioner 61777 | -1/Command | Destroyed Striker 61797 | -1/Command | Spotted Striker 61797 | -1/Command | Destroyed Executioner 61803 | -1/Command | Destroyed Striker 61806 | -1/Command | Spotted Striker 61822 | -1/Command | Destroyed Striker 61843 | -1/Command | Destroyed 31 combat bots 62014 | -1/Command | Destroyed 8 combat bots 62130 | -1/Command | Build established: Scavenger-Mutant 62453 | -1/Command | Spotted Striker 62454 | -1/Command | Spotted Executioner 62463 | -1/Command | Destroyed Striker 62475 | -1/Command | Destroyed Investigator 62478 | -1/Command | Spotted Executioner 62478 | -1/Command | Spotted Striker 62479 | -1/Command | Spotted Striker 62482 | -1/Command | Spotted Executioner 62485 | -1/Command | Spotted Striker 62485 | -1/Command | Spotted Executioner 62487 | -1/Command | Destroyed Striker 62495 | -1/Command | Used Integrity Redistributor, redistributed integrity from core (-223) 62498 | -1/Command | Destroyed Striker 62498 | -1/Command | Destroyed Executioner 62500 | -1/Command | System corruption reached 10% 62502 | -1/Command | Destroyed Striker 62505 | -1/Command | Destroyed Executioner 62506 | -1/Command | Destroyed Executioner 62558 | -1/Command | Destroyed 37 combat bots 62615 | -1/Command | Used Integrity Redistributor, redistributed integrity from core (-234) 62717 | -1/Command | Destroyed Executioner 62849 | -1/Command | Build established: Machinist-Mutant 63147 | -1/Command | Destroyed 7 combat bots 63315 | -1/Command | Destroyed M Guard 63368 | -1/Command | Destroyed M Guard 63368 | -1/Command | All MAIN.C guards destroyed 63372 | -1/Command | Found Prototype Protection 63372 | -1/Command | Identified Hvy. Regenerative Plating 63377 | -1/Command | Found Prototype Launcher 63377 | -1/Command | Identified Ragnarok Missile Launcher 63383 | -1/Command | Found Prototype Device 63383 | -1/Command | Identified AEGIS Remote Shield 63388 | -1/Command | Found Prototype Device 63388 | -1/Command | Identified Thermal Barrier 63411 | -1/Command | Found Prototype Launcher 63411 | -1/Command | Identified Hellfire Missile Launcher 63477 | -1/Command | Found Cld. Nova Cannon 63596 | -1/Command | Found Exp. Targeting Computer 63632 | -1/Command | Found Exp. Core Analyzer 63820 | -1/Command | Found Prototype Launcher 63820 | -1/Command | Identified Containment Facilitator 63892 | -1/Command | Met MAIN.C 63917 | -1/Command | Destroyed MAIN.C Shell 63917 | -1/Command | 0b10 Conduit disabled 63919 | -1/Command | MAIN.C activated Command garrisons 63941 | -1/Command | Found Prototype Protection 63941 | -1/Command | Identified Centrium Heavy Armor Plating 63954 | -1/Command | Destroyed MAIN.C 63956 | -1/Command | Discovered new exit (range 43) 63956 | -1/Command | Discovered new exit (range 83) 63956 | -1/Command | Extracted map data and part IDs from MAIN.C's data core 63960 | -1/Command | Found Omega Cannon 63970 | -1/Command | Lost 4 parts (2u2w) 64038 | -1/Command | Found Exp. System Purifier 66235 | -1/Command | Phase Generator disabled 66398 | -1/Command | Found Hvy. Regenerative Plating 66562 | -1/Command | Found Exp. Powered Armor 66583 | -1/Command | Found Zero-point Reactor 66584 | -1/Command | Found Antimissile System 66598 | -1/Command | Found Exp. Powered Armor 66611 | -1/Command | Found Zero-point Reactor 66739 | -1/Command | Found Vortex Chain Reactor 66740 | -1/Command | Found Vortex Chain Reactor 66742 | -1/Command | Found Exp. Hardlight Generator 67319 | -1/Command | Found AEGIS Remote Shield 67679 | -1/Command | Found Multirail 67774 | -1/Command | Found Exp. Target Analyzer 67957 | -1/Command | Found Adv. Kinecellerator 67971 | -1/Command | Found Exp. Targeting Computer 67973 | -1/Command | Found Exp. Core Analyzer 67978 | -1/Command | Found Exp. Core Analyzer 67981 | -1/Command | Found Adv. Kinecellerator 67995 | -1/Command | Found Exp. Targeting Computer 68173 | -1/Command | Found Exp. Targeting Computer 68193 | -1/Command | Found Singularity Reactor 68198 | -1/Command | Found Centrium Heavy Armor Plating 68861 | -1/Command | Build established: Scavenger-Gunner 68877 | -1/Command | Found Beam Splitter 69223 | -1/Command | Build established: Machinist-Gunner 69619 | -1/Command | Build established: Scavenger-Gunner 70564 | -1/Command | Warped through subspace to slip node 70564 | -1/Command | Discovered new exit (range 5) 70575 | -1/Command | Entered Access_0 70577 | -1/Access_0 | Met Architect 70581 | -1/Access_0 | Core integrity fell below 50% 70588 | -1/Access_0 | Destroyed A8 70593 | -1/Access_0 | Architect warped through subspace 70631 | -1/Access_0 | Architect warped through subspace 70679 | -1/Access_0 | Architect warped through subspace 70708 | -1/Access_0 | Architect warped through subspace 70749 | -1/Access_0 | Architect warped through subspace 70777 | -1/Access_0 | Found Exp. Powered Armor 70782 | -1/Access_0 | Architect warped through subspace 70809 | -1/Access_0 | Architect warped through subspace 70814 | -1/Access_0 | A6 warped into view 70820 | -1/Access_0 | Destroyed A6 70831 | -1/Access_0 | Architect warped through subspace 70842 | -1/Access_0 | Subspace Access Node disabled 70867 | -1/Access_0 | Architect warped through subspace 70880 | -1/Access_0 | Subspace Access Node disabled 70892 | -1/Access_0 | Architect warped through subspace 70899 | -1/Access_0 | Subspace Access Node disabled 70923 | -1/Access_0 | A5 warped into view 70933 | -1/Access_0 | Destroyed A5 70944 | -1/Access_0 | Architect warped through subspace 70978 | -1/Access_0 | Destroyed A2 70980 | -1/Access_0 | Extracted Singularity Gate Test 138-C access codes from A2's data core 70991 | -1/Access_0 | Architect warped through subspace 71045 | -1/Access_0 | Build established: Scavenger-Sprinter 71049 | -1/Access_0 | Found Exp. Terrain Scan Processor 71078 | -1/Access_0 | Singularity Gate disabled 71083 | -1/Access_0 | Singularity Gate disabled 71087 | -1/Access_0 | Architect warped through subspace 71113 | -1/Access_0 | A4 warped into view 71124 | -1/Access_0 | Destroyed A4 71142 | -1/Access_0 | Architect warped through subspace 71143 | -1/Access_0 | Found Hpw. Transdimensional Reconstructor 71172 | -1/Access_0 | Found Exp. Phase Shifter 71186 | -1/Access_0 | Architect warped through subspace 71214 | -1/Access_0 | Architect warped through subspace 71251 | -1/Access_0 | Architect warped through subspace 71269 | -1/Access_0 | Subspace Access Node disabled 71361 | -1/Access_0 | Destroyed Architect 71366 | -1/Access_0 | Found Hpw. Transdimensional Reconstructor 71367 | -1/Access_0 | Found Alien Energy Gun 71367 | -1/Access_0 | Identified Modified Sigix Sheargun 71369 | -1/Access_0 | Extracted unknown sensor trigger ID from Architect's data core 71371 | -1/Access_0 | Found Prototype Hackware 71371 | -1/Access_0 | Identified Architect God Chip D 71373 | -1/Access_0 | Found Prototype Hackware 71373 | -1/Access_0 | Identified Architect God Chip A 71383 | -1/Access_0 | Lost 3 parts (1n2u) 71407 | -1/Access_0 | Found Prototype Device 71407 | -1/Access_0 | Identified Desublimator 71415 | -1/Access_0 | Found Exp. Weapon Cycler 71520 | -1/Access_0 | Found Exp. Powered Armor 71600 | -1/Access_0 | Build established: Scavenger-Gunner 71634 | -1/Access_0 | Found Exp. Powered Armor 71635 | -1/Access_0 | Found Exp. Powered Armor 71719 | -1/Access_0 | A3 warped into view 71866 | -1/Access_0 | Destroyed A3 71868 | -1/Access_0 | Found Prototype Ballistic Gun 71868 | -1/Access_0 | Identified A3's Sniper Rifle 72013 | -1/Access_0 | Found Core Expander 72201 | -1/Access_0 | Build established: Scavenger-Sprinter 72647 | -1/Access_0 | Found Sigix Corpse 72729 | -1/Access_0 | Warped through subspace to slip node 72729 | -1/Access_0 | Discovered new exit (range 8) 72731 | -1/Access_0 | Warped through subspace to slip node 72734 | *** | Establishing 0b11! Last Messages --------------- 72591_ Enhanced Grunt critical meltdown. 72591_ Exp. Thermal Shield melted. 72591_ Adv. Heat Sink melted. 72591_ Antimatter Reactor melted. 72596_ Adv. Heat Sink melted. 72596_ Enh. Flexi-carbon Leg melted. 72596_ Enhanced Grunt destroyed. 72644_ HV Slug penetrates Analysis Chamber. 72644_ Analysis Chamber breached. 72644_ HV Slug penetrates Analysis Chamber. 72647_ Dropped Exp. Powered Armor. 72647_ Acquired Sigix Corpse. 72652_ HV Slug penetrates Wall. 72692_ Acquired 2 matter. 72717_ Acquired 18 matter. 72724_ Dropped Exp. Matter Compressor. 72725_ Acquired Hpw. Transdimensional Reconstructor. 72729_ Warped through subspace, drawn to slip node. 72729_ EXIT=FOUND 72731_ Warped through subspace, drawn to slip node. Map ----- +----------------------------------------------------+ | | | | | | | | | | | | | | | | | | | | | | | | | | | | | | | | | ?????????????????????????????????????????????????? | | ?????????????????????????????????????????????????? | | ?????????????????????????????????????????????????? | | ?????????????????????????????????????????????????? | | ?????????????????????????????????????????????????? | | ?????????????????????????????????????????????????? | | ????????????????????????###??????????????????????? | | ???????????????????????## ##?????????????????????? | | ???????????????????????# #?????????????????????? | | ???????????????????????# @ #?????????????????????? | | ??????????????????????## #?????????????????????? | | ??????????????????????# #?????????????????????? | | ??????????????????????# ##?????????????????????? | | ??????????????????????## #?????????????????????? | | ??????????????????????# #?????????????????????? | | ??????????????????????# ##?????????????????????? | | ??????????????????????# < #?????????????????????? | | ??????????????????????# ##?????????????????????? | | ??????????????????????## #??????????????????????? | | ???????????????????????####??????????????????????? | | ?????????????????????????????????????????????????? | | ?????????????????????????????????????????????????? | | ?????????????????????????????????????????????????? | | ?????????????????????????????????????????????????? | | ?????????????????????????????????????????????????? | | ?????????????????????????????????????????????????? | | ?????????????????????????????????????????????????? | | ?????????????????????????????????????????????????? | | ?????????????????????????????????????????????????? | | ?????????????????????????????????????????????????? | | ?????????????????????????????????????????????????? | | ?????????????????????????????????????????????????? | | ?????????????????????????????????????????????????? | | ?????????????????????????????????????????????????? | +----------------------------------------------------+ Best States ------------- Heat Dissipation 382 Coolant Potential 100 Energy Generation 93 Energy Capacity 1300 Matter Stores 300 Matter Capacity 300 Sight Range 20 Robot Scan Range 20 Terrain Scan Range 24 Terrain Scan Density 1010 Jamming Range 16 Cloak Strength 4 Power Amplification 40 Additional Mass Support 25 Armor Coverage 1200 Resistance: KI 30 Resistance: TH 50 Propulsion Shielding 90 Utility Shielding 90 Point Defense Rating 240 Weapon Cycling 30 Phase Shifting 20 Evasion (%) 91 Targeting Accuracy 24 Target Analysis 10 Core Analysis 12 Armor Integrity Analysis 40 Recoil Reduction 7 Kinecelleration 50 Offensive Hacking 52 Defensive Hacking 28 Authchip Count 4 Trap Extractor Capacity 6 Item Schematics ----------------- Signal Interpreter | -10/Materials | Hacked Hcp. Storage Unit | -10/Materials | Hacked Cmb. Airjet | -9/Materials | Scanalyzed Seismic Detector | -9/Materials | Hacked Med. Reactive Plating | -7/Zion | Archive Hvy. Flak Cannon | -7/Zion | Archive Mak. Flight Unit | -7/Zion | Archive Mak. Hover Unit | -7/Zion | Archive Weapon Cycler | -7/Zion | Archive Lgt. Angular Momentum Engine | -7/Zion | Archive Imp. Titanium Leg | -7/Zion | Archive Imp. Transmission Jammer | -7/Zion | Archive Disruptor Cannon | -7/Zion | Archive Energy Filter | -7/Zion | Archive Adv. Terrain Scanner | -7/Zion | Archive Beamcaster | -7/Zion | Archive Power Amplifier | -7/Zion | Archive Microactuators | -7/Zion | Archive Adv. Hacking Suite | -6/Factory | Hacked Exp. Utility Shielding | -6/Factory | Hacked Mak. Spear | -6/Factory | Scanalyzed Adv. System Shield | -6/Factory | Hacked Biomechanical Wings | -6/Factory | Hacked Combat Drone Bay | -6/Data Miner | Free Lgt. Regenerative Plating | -6/Data Miner | Free Enh. Armored Leg | -6/Data Miner | Free Imp. Matter Compressor | -6/Data Miner | Free Cld. Plasma Rifle | -6/Data Miner | Free Imp. Linear Gravjet | -6/Data Miner | Free Point Defense Array | -6/Data Miner | Free Railgun | -6/Data Miner | Free Imp. System Guard | -6/Data Miner | Free Biometal Leg | -6/Data Miner | Free Exp. Propulsion Shielding | -5/Factory | Hacked Mni. Smartbomb Launcher | -5/Factory | Hacked Zero-point Reactor | -5/Factory | Scanalyzed Adv. Powered Armor | -5/Factory | Scanalyzed Exp. Biometal Heavy Treads | -4/Factory | Hacked Exp. Signal Interpreter | -4/Factory | Hacked Plasma Lance | -4/Factory | Hacked Exp. Melee Analysis Suite | -4/Factory | Hacked Exp. Hacking Suite | -4/Factory | Hacked Exp. System Shield | -4/Factory | Hacked Adv. Cloaking Device | -4/Factory | Scanalyzed Hyp. Mass Driver | -4/Factory | Hacked Hyp. Railgun | -4/Factory | Hacked Helical Railgun | -4/Factory | Hacked Enh. Quantum Rifle | -4/Factory | Hacked Exp. Terrain Scan Processor | -4/Factory | Hacked Cmb. Linear Gravjet | -3/Research | Hacked Exp. Phase Shifter | -3/Research | Scanalyzed Hvy. Dispersion Rifle | -3/Research | Scanalyzed Adv. Heavy Siege Treads | -3/Research | Hacked Exp. Target Analyzer | -3/Testing | Hacked Exp. Weapon Cycler | -3/Testing | Hacked Exp. Reaction Control System | -3/Testing | Hacked Hdn. Centrium Wheel | -2/Quarantine | Archive Imp. Quantum Reactor | -2/Quarantine | Archive Exp. Biometal Leg | -2/Quarantine | Archive Energy Mantle | -2/Section 7 | Archive Exp. Coolant Injector | -2/Section 7 | Archive Exp. Biometal Medium Treads | -2/Section 7 | Archive Graviton Cannon | -2/Section 7 | Archive Electron Diverter | -2/Section 7 | Archive Diametric Drive | -2/Section 7 | Archive Robot Schematics ------------------ G-47 Trooper | -8/Storage | Hacked B-48 Gladiator | -7/Zion | Archive M-14 Sweeper | -7/Zion | Archive A-02 Transporter | -7/Zion | Archive X-82 Rainmaker | -7/Zion | Archive L-41 Fighter | -6/Data Miner | Free Y-54 Guardian | -6/Data Miner | Free R-10 Processor | -6/Data Miner | Free S-27 Virus | -6/Data Miner | Free A-15 Conveyor | -6/Data Miner | Free D-63 Destroyer | -6/Data Miner | Free G-67 Veteran | -4/Factory | Hacked L-61 Swordsman | -2/Quarantine | Archive S-43 Plague | -2/Section 7 | Archive R-06 Scavenger | -2/Section 7 | Archive B-74 Champion | -2/Section 7 | Archive Fabricated ------------ G-50 Soldier | x3 | -6/Factory | Preloaded Adv. Hacking Suite | x1 | -6/Factory | Authchip Adv. Hacking Suite | x1 | -6/Factory | Authchip Adv. Hacking Suite | x1 | -6/Factory | Authchip Biomechanical Wings | x1 | -6/Factory Adv. System Shield | x1 | -6/Factory | Authchip Biomechanical Wings | x1 | -6/Factory | Authchip Biomechanical Wings | x1 | -5/Factory | Authchip Biomechanical Wings | x1 | -5/Factory | Authchip Biomechanical Wings | x1 | -5/Factory B-60 Warrior | x3 | -5/Factory | Preloaded Mni. Smartbomb Launcher | x1 | -5/Factory Biomechanical Wings | x1 | -5/Factory | Authchip Exp. Propulsion Shielding | x1 | -5/Factory Exp. Utility Shielding | x1 | -5/Factory | Authchip Combat Drone Bay | x1 | -5/Factory Biomechanical Wings | x1 | -4/Factory Exp. Utility Shielding | x1 | -4/Factory Combat Drone Bay | x1 | -4/Factory Exp. Signal Interpreter | x1 | -4/Factory Combat Drone Bay | x1 | -4/Factory Zero-point Reactor | x1 | -4/Factory Adv. Powered Armor | x1 | -4/Factory Adv. Hacking Suite | x1 | -4/Factory Exp. Hacking Suite | x1 | -4/Factory Cmb. Linear Gravjet | x2 | -3/Research | Authchip Cmb. Linear Gravjet | x2 | -3/Research | Authchip Cmb. Linear Gravjet | x2 | -3/Research | Authchip Hcp. Storage Unit | x1 | -3/Research Cmb. Linear Gravjet | x2 | -3/Research | Authchip Adv. Cloaking Device | x1 | -3/Testing | Authchip Zero-point Reactor | x1 | -3/Testing Exp. Target Analyzer | x1 | -3/Testing Exp. Weapon Cycler | x1 | -2/Research Exp. Utility Shielding | x1 | -2/Research Exp. Reaction Control System | x1 | -1/Access Alien Tech Used ----------------- Core Expander Dimensional Node Initializer Phase Armor Subatomic Replicator Matter Drive Core Cannon High-powered Transdimensional Reconstructor Transdimensional Reconstructor Sigix Broadsword Phase Redirector Terrabomb Integrated Reactor Integrated Dissipator Integrated Mediator Sigix Sheargun Spacefold Activator Sigix Shearcannon Integrity Redistributor LRC Storage LRC Armor Modified Sigix Sheargun Achievements -------------- Woof! Challenges ------------ None Game ------ Seed SigixAblativeSegregator Manual? 0 Play Time 26:32:46 Cumulative 569.5 hours Start 2022.08.16 @ 01:18:06 End 2022.09.11 @ 21:19:06 Sessions 39 Manual Loads 0 Difficulty Rogue Special Mode None Game No. 50 Rogue 40 Adventurer 5 Explorer 5 Win Type 1 Total 22 Types 6/5/4/0/3/1/2/0/1 Lore% 85 Gallery% 93 Achievement% 83 Wizard Run 0 Options --------- ASCII 0 Keyboard 1 Movement Numpad Keybinds 0 Fullscreen 1 Font 18/SmallcapsGlow Map View 76x50 Tactical HUD 1 Map Filters NONE Filters NONE Steam 1 RUN: 49e22be0-c780-4b7f-93e3-5612a01f107e